Workbook

Sheet Índice
A1: BOLETÍN DE ESTADÍSTICAS OFICIALES DE POBREZA MONETARIA EN REPÚBLICA DOMINICANA 2024
A4: GRÁFICOS
A5: Gráfico 1. Tasa de crecimiento del Producto Interno Bruto (PIB) e inflación , 2019-2024
A6: Gráfico 2. Inflación anual por macrorregiones, 2017-2024 (porcentaje, %)
A7: Gráfico 3. Indicadores de Subutilización de la Fuerza de Trabajo, 2014-2024 (promedio anual, %)
A8: Gráfico 4. Promedio del ingreso nominal per cápita del hogar mensual según metodología, 2015-2024
A9: Gráfico 5. Promedio del ingreso real per cápita del hogar mensual, 2015-2024 (RD$)
A10: Gráfico 6. Participación de fuentes de ingresos en crecimiento ingreso real per cápital del hogar mensual, 2023-2024 (%)
A11: Gráfico 7. Participación del ingreso real per cápita del hogar mensual, 2023-2024* (Porcentaje %)
A12: Gráfico 8. Participación del salario mínimo de las pequeñas empresas en el salario nominal promedio, 2015-2024
A13: Gráfico 9. Evolución de la tasa de pobreza general y extrema, 2016-2024 (en porcentaje, %)
A14: Gráfico 10. Evolución de los índices FGT, 2015-2024 (en porcentaje, %)
A15: Gráfico 11. Porcentaje de población en condición de pobreza monetaria por zona de residencia 2023-2024
A16: Gráfico 12. Tasa de pobreza monetaria general y extrema por macrorregión 2023-2024
A17: Gráfico 13. Tasa de pobreza general por sexo de los miembros del hogar 2023-2024
A18: Gráfico 14. Tasa de pobreza general por sexo del jefe de hogar 2023-2024
A19: Gráfico 15. Incidencia de la pobreza monetaria por grupo de edad, 2015-2024
A20: Gráfico 16. Descomposición del cambio de la pobreza general y extrema en los efectos de crecimiento, distribución e inflación 2023-2024 (puntos porcentuales)
A21: Gráfico 17. Descomposición del cambio en la pobreza general por cambios en los componentes de ingresos, 2023-2024
A22: Gráfico 18. Tasa de pobreza general con y sin remesas del exterior, 2023-2024 (porcentaje, %)
A23: Gráfico 19. Tasa de pobreza general con y sin algunos componentes del ingreso 2023-2024 (porcentaje, %)
A24: Gráfico 20. Coeficiente de desigualdad de Gini, por zona de residencia 2016-2024
A25: Gráfico 21. Índice de Gini por macrorregiones 2023- 2024
A26: Gráfico 22. Índice de Palma por Zona 2022 - 2024
A27: TABLAS
A28: Tabla 1. Ocupados formales e informales según sexo, 2019 - 2024 (promedio anual)
A29: Tabla 2. Tasa global de partipación y tasa de inactividad, según sexo 2019 - 2024 (promedio anual)
A30: Tabla 3. Salarios e ingresos de los ocupados, 2015-2024
A31: ANEXOS
A32: Anexo 1. Pobreza monetaria por trimestre, 2016-2024
A33: Anexo 2. Líneas de pobreza monetaria general por persona, según macrorregión 2016-2024
A34: Anexo 3. Líneas de pobreza monetaria extrema por persona, según macrorregión 2016-2024
A35: Anexo 4. Coeficientes de variación e intervalos de confianzas de las tasas de pobreza monetaria general, según macrorregión 2016-2024
A36: Anexo 5. Coeficientes de variación e intervalos de confianzas de las tasas de pobreza monetaria extrema, según macrorregión, 2016-2024
A37: Anexo 6. Coeficientes de variación e intervalos de confianzas de las tasas de pobreza monetaria general, 2016-2024
A38: Anexo 7. Coeficientes de variación e intervalos de confianzas de las tasas de pobreza monetaria extrema, 2016-2024
A39: Anexo 8. Coeficientes de variación e intervalos de confianzas de las tasas de pobreza monetaria general, según zona, 2016-2024
A40: Anexo 9. Coeficientes de variación e intervalos de confianzas de las tasas de pobreza monetaria general, según zona, 2016-2024
A41: Anexo 10. Coeficientes de variación e intervalos de confianzas de las tasas de pobreza monetaria general, según sexo 2016-2024
A42: Anexo 11. Coeficientes de variación e intervalos de confianzas de las tasas de pobreza monetaria general, según sexo 2016-2024
A43: Anexo 12. Deflactor del índice de precios del consumidor, a junio del año 2019 , según macrorregión 2016-2024
A44: Anexo 13. Descomposición del cambio de la pobreza general en los efectos de crecimiento, distribución e inflación 2022-2024 (puntos porcentuales)
A45: Anexo 14. Coeficiente de variación, error estandar e intervalo de confianza de la tasa de pobreza monetaria general, según grupo de edad, 2016-2024

Sheet Gráfico 1
A3: Índice
B7: IPC Base Anual: Octubre 2019 - Septiembre 2020=100
A8: Años | B8: Inflación | C8: Producto Interno Bruto (PIB)
A9: 2019 | B9: 3.7 | C9: 4.9
A10: 2020 | B10: 5.6 | C10: -7.9
A11: 2021 | B11: 8.5 | C11: 14.0
A12: 2022 | B12: 7.8 | C12: 5.2
A13: 2023 | B13: 3.6 | C13: 2.2
A14: 2024* | B14: 3.3 | C14: 5.0
A15: Fuente: Comité Técnico Interinstitucional de Pobreza, con base en cifras oficiales del Banco Central de la República Dominicana.
A16: *Base anual 2018=100

Sheet Gráfico 2
A2: Índice
B7: Inflación anual por macrorregiones 2016-2024*
B8: Años | C8: Ozama | D8: Norte o Cibao | E8: Este | F8: Sur
B9: 2017 | C9: 3.7 | D9: 4.8 | E9: 4.1 | F9: 4.3
B10: 2018 | C10: 1.0 | D10: 1.1 | E10: 1.9 | F10: 1.5
B11: 2019 | C11: 3.1 | D11: 4.0 | E11: 3.6 | F11: 4.5
B12: 2020 | C12: 5.3 | D12: 5.4 | E12: 5.6 | F12: 6.9
B13: 2021 | C13: 7.6 | D13: 9.1 | E13: 8.7 | F13: 10.0
B14: 2022 | C14: 6.9 | D14: 9.0 | E14: 8.1 | F14: 8.2
B15: 2023 | C15: 3.5 | D15: 3.4 | E15: 3.9 | F15: 3.8
B16: 2024* | C16: 3.4 | D16: 3.2 | E16: 3.2 | F16: 3.7

Sheet Gráfico 3
A2: Índice
A6: Indicadores de Subutilización de la Fuerza de Trabajo (promedio anual, %), 2014-2023*
A7: Año | B7: SU1: Tasa de Desocupación | C7: SU2: Desocupación y Subocupación | D7: SU3: Desocupación y Fuerza de Trabajo Potencial | E7: SU4: Desocupación + Subocupación + Fuerza de Trabajo Potencial
A8: 2014 | B8: 8.3 | C8: 15.5 | D8: 16.9 | E8: 23.5
A9: 2015 | B9: 7.3 | C9: 13.4 | D9: 15.2 | E9: 20.7
A10: 2016 | B10: 7.1 | C10: 12.5 | D10: 14.1 | E10: 19.2
A11: 2017 | B11: 5.5 | C11: 10.1 | D11: 12.7 | E11: 17.0
A12: 2018 | B12: 5.7 | C12: 10.6 | D12: 11.2 | E12: 15.8
A13: 2019 | B13: 6.2 | C13: 11.3 | D13: 10.8 | E13: 15.6
A14: 2020 | B14: 5.8 | C14: 10.0 | D14: 15.0 | E14: 18.7
A15: 2021 | B15: 7.4 | C15: 11.5 | D15: 14.3 | E15: 18.1
A16: 2022 | B16: 5.3 | C16: 7.6 | D16: 11.6 | E16: 13.8
A17: 2023 | B17: 5.3 | C17: 7.6 | D17: 11.4 | E17: 13.6
A18: 2024* | B18: 5.1 | C18: 7.6 | D18: 10.2 | E18: 12.6
A19: Fuente: Comité Técnico Interinstitucional de Pobreza, a partir del procesamiento de microdatos de la ENCFT del Banco Central de la República Dominicana. *Cifras preliminares

Sheet Tabla 1
A2: Índice
A6: Tabla 1. Ocupados formales e informales según sexo, 2019 - 2024* (promedio anual)
A7: Concepto | B7: Sexo | C7: Número de personas ocupadas | I7: Variación anual
C8: 2019 | D8: 2020 | E8: 2021 | F8: 2022 | G8: 2023* | H8: 2024* | I8: # 2023-2024 | J8: % 2023-2024 | K8: # 2019-2024 | L8: % 2019-2024
A9: Ocupación Formal | B9: Hombres | C9: 1,149,622 | D9: 1,077,161 | E9: 1,029,776 | F9: 1,073,344 | G9: 1,120,412 | H9: 1,173,898 | I9: =H9-G9 -> 53,486 | J9: =+(H9-G9)/G9*100 -> 4.8 | K9: =H9-C9 -> 24,276 | L9: =+(H9-C9)/C9*100 -> 2.1
B10: Mujeres | C10: 937,601 | D10: 877,501 | E10: 877,689 | F10: 915,838 | G10: 981,153 | H10: 1,055,571 | I10: 74,418 | J10: 7.6 | K10: 117,970 | L10: 12.6
B11: Total | C11: =SUM(C9:C10) -> 2,087,223 | D11: =SUM(D9:D10) -> 1,954,663 | E11: =SUM(E9:E10) -> 1,907,465 | F11: 1,989,181 | G11: =SUM(G9:G10) -> 2,101,565 | H11: =SUM(H9:H10) -> 2,229,469 | I11: 127,904 | J11: 6.1 | K11: 142,246 | L11: 6.8
A12: Ocupación Informal | B12: Hombres | C12: 1,621,875 | D12: 1,559,636 | E12: 1,694,509 | F12: 1,694,166 | G12: 1,701,462 | H12: 1,744,726 | I12: 43,264 | J12: 2.5 | K12: 122,851 | L12: 7.6
B13: Mujeres | C13: 954,170 | D13: 876,356 | E13: 954,671 | F13: 1,004,031 | G13: 1,032,282 | H13: 1,031,842 | I13: -440 | J13: -0.0 | K13: 77,672 | L13: 8.1
B14: Total | C14: =SUM(C12:C13) -> 2,576,045 | D14: =SUM(D12:D13) -> 2,435,993 | E14: =SUM(E12:E13) -> 2,649,180 | F14: 2,698,197 | G14: =SUM(G12:G13) -> 2,733,744 | H14: =SUM(H12:H13) -> 2,776,567 | I14: 42,824 | J14: 1.6 | K14: 200,522 | L14: 7.8
A15: Total | B15: Hombres | C15: =+C9+C12 -> 2,771,497 | D15: 2,636,798 | E15: 2,724,285 | F15: 2,767,510 | G15: =SUM(G9+G12) -> 2,821,874 | H15: =SUM(H9+H12) -> 2,918,624 | I15: 96,750 | J15: 3.4 | K15: 147,127 | L15: 5.3
B16: Mujeres | C16: 1,891,771 | D16: 1,753,857 | E16: 1,832,360 | F16: 1,919,869 | G16: =SUM(G10+G13) -> 2,013,435 | H16: =SUM(H10+H13) -> 2,087,412 | I16: 73,978 | J16: 3.7 | K16: 195,641 | L16: 10.3
B17: Total | C17: =+C11+C14 -> 4,663,268 | D17: 4,390,655 | E17: =+E11+E14 -> 4,556,645 | F17: 4,687,379 | G17: =SUM(G15:G16) -> 4,835,309 | H17: =SUM(H15:H16) -> 5,006,036 | I17: 170,727 | J17: 3.5 | K17: 342,768 | L17: 7.4
A18: Fuente: Comité Técnico Interinstitucional de Medición de la Pobreza, a partir del procesamiento de microdatos de la ENCFT del Banco Central de la República Dominicana. *Cifras preliminares

Sheet Tabla 2
A3: Índice
A6: Tabla 2. Tasa Global de partipación y tasa de Inactividad, según sexo, 2019 - 2024* (promedio anual)
A7: Sexo | B7: Total Global de Participación | H7: Tasa de Inactividad
B8: 2019 | C8: 2020 | D8: 2021 | E8: 2022 | F8: 2023* | G8: 2024* | H8: 2019 | I8: 2020 | J8: 2021 | K8: 2022 | L8: 2023* | M8: 2024*
A9: Hombres | B9: 78.4 | C9: 74.0 | D9: 75.7 | E9: 76.8 | F9: 76.7 | G9: 78.3 | H9: 21.6 | I9: 26.0 | J9: 24.3 | K9: 23.2 | L9: 23.3 | M9: 21.7
A10: Mujeres | B10: 52.6 | C10: 47.6 | D10: 51.2 | E10: 50.7 | F10: 52.6 | G10: 53.5 | H10: 47.4 | I10: 52.4 | J10: 48.8 | K10: 49.3 | L10: 47.4 | M10: 46.5
A11: Total | B11: 65.1 | C11: 60.2 | D11: 63.0 | E11: 63.1 | F11: 64.1 | G11: 65.3 | H11: 34.9 | I11: 39.8 | J11: 37.0 | K11: 36.9 | L11: 35.9 | M11: 34.7
A12: Fuente: Comité Técnico Interinstitucional de Medición de la Pobreza, a partir del procesamiento de microdatos de la ENCFT del Banco Central de la República Dominicana. *Cifras preliminares

Sheet Gráfico 4
A2: Índice
A6: Ingreso nominal per cápita del hogar, 2015-2024
A7: Año | B7: Ingreso per cápita nominal | C7: Diferencias relativas
A8: 2015 | B8: 9,263
A9: 2016 | B9: 10,096 | C9: =(B9-B8)/B8*100 -> 9.0
A10: 2017 | B10: 10,844 | C10: =(B10-B9)/B9*100 -> 7.4
A11: 2018 | B11: 12,120 | C11: 11.8
A12: 2019 | B12: 12,763 | C12: 5.3
A13: 2020 | B13: 11,662 | C13: -8.6
A14: 2021 | B14: 12,280 | C14: 5.3
A15: 2022 | B15: 13,695 | C15: 11.5
A16: 2023 | B16: 15,906 | C16: 16.1
A17: 2024* | B17: 18,313 | C17: =(B17-B16)/B16*100 -> 15.1
A18: Fuente: Comité Técnico Interinstitucional de Pobreza, a partir del procesamiento de microdatos de la ENCFT del Banco Central de la República Dominicana. *Cifras preliminares

Sheet Gráfico 5
A2: Índice
A6: Ingreso real per cápita del hogar, 2016-2024
B8: Año | C8: Ingreso per cápita real | D8: Diferencias relativas
B9: 2015 | C9: 10,122
B10: 2016 | C10: 10,837 | D10: =((C10/C9)-1)*100 -> 7.1
B11: 2017 | C11: 11,348 | D11: =((C11/C10)-1)*100 -> 4.7
B12: 2018 | C12: 12,120 | D12: 6.8
B13: 2019 | C13: 12,647 | D13: 4.4
B14: 2020 | C14: 11,225 | D14: -11.2
B15: 2021 | C15: 10,808 | D15: -3.7
B16: 2022 | C16: 11,000 | D16: 1.8
B17: 2023 | C17: 12,289 | D17: 11.7
B18: 2024* | C18: 13,678 | D18: 11.3

Sheet Gráfico 6
A2: Índice
C8: Componentes del ingresos | D8: Cambio total | E8: Participación
C9: Ingreso laboral | D9: 724 | E9: =+D9/$D$16*100 -> 52.1
C10: Ingreso no laboral en especie | D10: 104 | E10: =+D10/$D$16*100 -> 7.5
C11: Ingreso no laboral monetario | D11: 222 | E11: 16.0
C12: Ingresos del exterior | D12: 85 | E12: 6.1
C13: Transferencias gubernamentales directas | D13: 45 | E13: 3.3
C14: Transferencias gubernamentales en especies (PAE) | D14: 55 | E14: 3.9
C15: Alquiler imputado | D15: 154 | E15: 11.1
C16: Cambio total | D16: 1,389

Sheet Gráfico 7
A3: Índice
B7: Participación del ingreso real per cápita del hogar mensual, 2023-2024* (Porcentaje %)
B8: Años | C8: Ingresos laborales | D8: Ingresos no laborales en especies | E8: Ingresos no laborales monetarios | F8: Ingresos del exterior | G8: Alquiler imputado | H8: Transferencias monetarias estatales | I8: Transferencia en especies estatales (PAE)
B9: 2023 | C9: 72.3 | D9: 2.0 | E9: 9.4 | F9: 3.5 | G9: 9.3 | H9: 1.9 | I9: 1.7
B10: 2024* | C10: 71.4 | D10: 2.3 | E10: 10.1 | F10: 3.6 | G10: 9.4 | H10: 1.7 | I10: 1.6

Sheet Tabla 3
A4: Índice
B7: Tabla 3. Salarios e ingresos de los ocupados, 2015-2024*
B8: Años | C8: Salario Nominal | D8: Variación total | E8: Salario Real | F8: Variación total | G8: Ingreso laboral monetario nominal | H8: Variación total | I8: Ingreso laboral monetario real | J8: Variación total
B9: 2015 | C9: 13,416 | D9: - | E9: 14,651 | F9: - | G9: 15,473 | H9: - | I9: 16,910 | J9: -
B10: 2016 | C10: 13,795 | D10: =+(C10-C9)/C9*100 -> 2.8 | E10: 14,794 | F10: =+(E10-E9)/E9*100 -> 1.0 | G10: 16,578 | H10: =+(G10-G9)/G9*100 -> 7.1 | I10: 17,794 | J10: =+(I10-I9)/I9*100 -> 5.2
B11: 2017 | C11: 14,870 | D11: =+(C11-C10)/C10*100 -> 7.8 | E11: 15,553 | F11: =+(E11-E10)/E10*100 -> 5.1 | G11: 17,313 | H11: =+(G11-G10)/G10*100 -> 4.4 | I11: 18,118 | J11: =+(I11-I10)/I10*100 -> 1.8
B12: 2018 | C12: 16,828 | D12: 13.2 | E12: 16,828 | F12: 8.2 | G12: 19,356 | H12: 11.8 | I12: 19,356 | J12: 6.8
B13: 2019 | C13: 17,333 | D13: 3.0 | E13: 17,181 | F13: 2.1 | G13: 19,976 | H13: 3.2 | I13: 19,796 | J13: 2.3
B14: 2020 | C14: 16,835 | D14: -2.9 | E14: 16,222 | F14: -5.6 | G14: 18,161 | H14: -9.1 | I14: 17,488 | J14: -11.7
B15: 2021 | C15: 18,189 | D15: 8.0 | E15: 16,029 | F15: -1.2 | G15: 19,432 | H15: 7.0 | I15: 17,109 | J15: -2.2
B16: 2022 | C16: 19,818 | D16: 9.0 | E16: 15,950 | F16: -0.5 | G16: 21,427 | H16: 10.3 | I16: 17,224 | J16: 0.7
B17: 2023 | C17: 22,052 | D17: 11.3 | E17: 17,068 | F17: 7.0 | G17: 24,480 | H17: 14.2 | I17: 18,925 | J17: 9.9
B18: 2024* | C18: 23,779 | D18: 7.8 | E18: 17,803 | F18: 4.3 | G18: 27,106 | H18: 10.7 | I18: 20,257 | J18: 7.0
B19: Fuente: Comité Técnico Interinstitucional de Medición de la Pobreza, a partir del procesamiento de microdatos de la ENCFT del Banco Central de la República Dominicana. *Cifras preliminares

Sheet Gráfico 8
A3: Índice
A6: Años | B6: Salario mínimo pequeñas empresas | C6: Salario Promedio nominal | D6: Salario mínimo pequeñas empresas / Salario promedio nominal | E6: Gini Salarial
A7: 2015 | B7: 7,843 | C7: 13,416 | D7: =+B7/C7*100 -> 58.5 | E7: 0.394
A8: 2016 | B8: 7,843 | C8: 13,795 | D8: =+B8/C8*100 -> 56.9 | E8: 0.377
A9: 2017 | B9: 9,412 | C9: 14,870 | D9: 63.3 | E9: 0.380
A10: 2018 | B10: 9,412 | C10: 16,828 | D10: 55.9 | E10: 0.388
A11: 2019 | B11: 10,730 | C11: 17,333 | D11: 61.9 | E11: 0.384
A12: 2020 | B12: 10,730 | C12: 16,835 | D12: 63.7 | E12: 0.399
A13: 2021 | B13: 12,400 | C13: 18,189 | D13: 68.2 | E13: 0.371
A14: 2022 | B14: 12,900 | C14: 19,818 | D14: 65.1 | E14: 0.355
A15: 2023 | B15: 14,835 | C15: 22,052 | D15: 67.3 | E15: 0.353
A16: 2024* | B16: 15,351 | C16: 23,779 | D16: 64.6 | E16: 0.349

Sheet Gráfico 9
A4: Índice
A7: Evolución de las tasas de pobreza general y extrema, 2015-2024* | G7: Cambios
A8: Año | B8: Pobreza extrema | C8: Pobreza moderada | D8: Pobreza general | E8: No pobre | G8: Pobreza extrema | H8: Pobreza general
A9: 2015 | B9: 8.7 | C9: =+D9-B9 -> 32.4 | D9: 41.1 | E9: =100-D9 -> 58.9
A10: 2016 | B10: 5.9 | C10: =+D10-B10 -> 28.9 | D10: 34.8 | E10: =100-D10 -> 65.2 | G10: =B11-B10 -> -1.1 | H10: =D12-D11 -> -2.9
A11: 2017 | B11: 4.7 | C11: 26.5 | D11: 31.2 | E11: 68.8 | G11: -1.3 | H11: -2.5
A12: 2018 | B12: 3.4 | C12: 24.8 | D12: 28.3 | E12: 71.7 | G12: -0.6 | H12: 4.6
A13: 2019 | B13: 2.9 | C13: 22.9 | D13: 25.8 | E13: 74.2 | G13: 2.1 | H13: 0.3
A14: 2020 | B14: 4.9 | C14: 25.5 | D14: 30.4 | E14: 69.6 | G14: -0.8 | H14: -3.0
A15: 2021 | B15: 4.1 | C15: 26.6 | D15: 30.7 | E15: 69.3 | G15: -0.4 | H15: -4.7
A16: 2022 | B16: 3.8 | C16: 23.9 | D16: 27.7 | E16: 72.3
A17: 2023 | B17: 3.2 | C17: 19.8 | D17: 23.0 | E17: 77.0
A18: 2024* | B18: 2.4 | C18: 16.5 | D18: 19.0 | E18: 81.0
A20: Población por nivel de pobreza monetaria, 2015-2024*
A21: Año | B21: Pobreza extrema | C21: Pobreza moderada | D21: Pobreza general | E21: No pobre
A22: 2015 | B22: 868,811 | C22: =+D22-B22 -> 3,234,473 | D22: 4,103,284 | E22: 5,876,438
A23: 2016 | B23: 590,704 | C23: =+D23-B23 -> 2,916,349 | D23: 3,507,053 | E23: 6,567,637
A24: 2017 | B24: 481,361 | C24: 2,693,296 | D24: 3,174,657 | E24: 6,994,598
A25: 2018 | B25: 353,612 | C25: 2,549,314 | D25: 2,902,926 | E25: 7,362,353
A26: 2019 | B26: 297,567 | C26: 2,374,114 | D26: 2,671,681 | E26: 7,686,134
A27: 2020 | B27: 514,953 | C27: 2,662,995 | D27: 3,177,948 | E27: 7,269,876
A28: 2021 | B28: 434,786 | C28: 2,797,141 | D28: 3,231,927 | E28: 7,303,434
A29: 2022 | B29: 400,162 | C29: 2,537,333 | D29: 2,937,496 | E29: 7,684,551
A30: 2023 | B30: 346,655 | C30: 2,116,260 | D30: 2,462,914 | E30: 8,247,415
A31: 2024* | B31: 263,528 | C31: 1,785,700 | D31: 2,049,228 | E31: 8,745,980
A32: Fuente: Comité Técnico Interinstitucional de Medición de la Pobreza, con base en cifras oficiales del Banco Central de la República Dominicana. *Cifras preliminares

Sheet Gráfico 10
A3: Índice
A7: Años | B7: Incidencia de la pobreza monetaria | C7: Brecha de la pobreza monetaria | D7: Intensidad de la pobreza monetaria
A8: 2015 | B8: 41.1 | C8: 14.3 | D8: 6.9
A9: 2016 | B9: 34.8 | C9: 11.2 | D9: 5.1
A10: 2017 | B10: 31.2 | C10: 9.7 | D10: 4.3
A11: 2018 | B11: 28.3 | C11: 8.1 | D11: 3.4
A12: 2019 | B12: 25.8 | C12: 7.3 | D12: 3.1
A13: 2020 | B13: 30.4 | C13: 9.5 | D13: 4.4
A14: 2021 | B14: 30.7 | C14: 9.3 | D14: 4.1
A15: 2022 | B15: 27.7 | C15: 8.3 | D15: 3.6
A16: 2023 | B16: 23.0 | C16: 6.8 | D16: 3.0
A17: 2024* | B17: 19.0 | C17: 5.3 | D17: 2.2
G22: Fuente: Comité Técnico Interinstitucional de Medición de la Pobreza, a partir del procesamiento de microdatos de la ENCFT. *Cifras preliminares

Sheet Gráfico 11
A1: Índice
A5: Porcentaje de la población en pobreza monetaria extrema y general por zona, 2016-2024 | I5: Porcentaje de la población en pobreza monetaria extrema y general por zona, 2023-2024*
A6: Año | B6: Pobreza general | E6: Pobreza extrema | I6: Zona | J6: Año | K6: Pobreza extrema | L6: Pobreza general
B7: Nacional | C7: Urbana | D7: Rural | E7: Nacional | F7: Urbana | G7: Rural | I7: Urbana | J7: 2023 | K7: 3.1% | L7: 22.7%
A8: 2015 | B8: 41.1% | C8: 39.4% | D8: 47.3% | E8: 8.7% | F8: 7.8% | G8: 12.2% | J8: 2024* | K8: 2.2% | L8: 18.3%
A9: 2016 | B9: 34.8% | C9: 33.4% | D9: 40.1% | E9: 5.9% | F9: 5.1% | G9: 8.6%
A10: 2017 | B10: 31.2% | C10: 29.9% | D10: 36.8% | E10: 4.7% | F10: 4.3% | G10: 6.6% | I10: Rural | J10: 2023 | K10: 4.1% | L10: 24.6%
A11: 2018 | B11: 28.3% | C11: 27.3% | D11: 32.4% | E11: 3.4% | F11: 3.2% | G11: 4.5% | J11: 2024* | K11: 3.7% | L11: 22.8%
A12: 2019 | B12: 25.8% | C12: 24.5% | D12: 31.6% | E12: 2.9% | F12: 2.7% | G12: 3.5%
A13: 2020 | B13: 30.4% | C13: 29.8% | D13: 33.3% | E13: 4.9% | F13: 4.7% | G13: 5.8%
A14: 2021 | B14: 30.7% | C14: 30.1% | D14: 33.5% | E14: 4.1% | F14: 4.0% | G14: 4.9%
A15: 2022 | B15: 27.7% | C15: 27.0% | D15: 30.9% | E15: 3.8% | F15: 3.6% | G15: 4.7%
A16: 2023 | B16: 23.0% | C16: 22.7% | D16: 24.6% | E16: 3.2% | F16: 3.1% | G16: 4.1%
A17: 2024* | B17: 19.0% | C17: 18.3% | D17: 22.8% | E17: 2.4% | F17: 2.2% | G17: 3.7%
A18: Fuente: Comité Técnico Interinstitucional de Medición de la Pobreza, a partir del procesamiento de microdatos de la ENCFT del Banco Central de la República Dominicana. *Cifras preliminares

Sheet Gráfico 12
A3: Índice
I5: Gráfico 12. Tasa de pobreza monetaria general y extrema por macrorregión 2023-2024
A6: Incidencia de la pobreza general por macroregiones, junio 2019-junio 2020
A7: Periodo | B7: Macro-región | C7: Pobreza extrema | D7: Pobreza moderada | E7: Pobreza general | F7: No pobre
A8: 2016 (Q1) | B8: Gran Santo Domingo | C8: 4.5% | D8: 24.5% | E8: =C8+D8 -> 29.0% | F8: 71.0%
B9: Norte o Cibao | C9: 3.0% | D9: 23.3% | E9: =C9+D9 -> 26.4% | F9: 73.6%
B10: Sur | C10: 9.2% | D10: 35.0% | E10: 44.2% | F10: 55.8%
B11: Este | C11: 7.0% | D11: 25.4% | E11: 32.4% | F11: 67.6%
A12: 2016 (Q2) | B12: Gran Santo Domingo | C12: 4.7% | D12: 22.3% | E12: 27.0% | F12: 73.0%
B13: Norte o Cibao | C13: 3.0% | D13: 19.0% | E13: 22.0% | F13: 78.0% | I13: Gráfico 12. Tasa de pobreza monetaria general y extrema por macrorregión 2023-2024
B14: Este | C14: 2.7% | D14: 17.3% | E14: 19.9% | F14: 80.1%
A15: 2019 (Q2) | B15: Gran Santo Domingo | C15: 2.3% | D15: 18.7% | E15: 21.1% | F15: 78.9%
B16: Norte o Cibao | C16: 1.7% | D16: 15.6% | E16: 17.3% | F16: 82.7%
B17: Sur | C17: 4.7% | D17: 25.3% | E17: 29.9% | F17: 70.1%
B18: Este | C18: 3.9% | D18: 15.6% | E18: 19.5% | F18: 80.5%
A19: 2019 (Q3) | B19: Gran Santo Domingo | C19: 3.2% | D19: 17.6% | E19: 20.8% | F19: 79.2%
B20: Norte o Cibao | C20: 1.7% | D20: 14.4% | E20: 16.1% | F20: 83.9%
B21: Sur | C21: 3.6% | D21: 26.2% | E21: 29.8% | F21: 70.2%
B22: Este | C22: 2.9% | D22: 17.6% | E22: 20.5% | F22: 79.5%
A23: 2019 (Q4) | B23: Gran Santo Domingo | C23: 2.5% | D23: 18.2% | E23: 20.8% | F23: 79.2%
B24: Norte o Cibao | C24: 1.2% | D24: 14.7% | E24: 15.9% | F24: 84.1%
B25: Sur | C25: 4.4% | D25: 25.2% | E25: 29.6% | F25: 70.4% | J25: Gráfico 12. Tasa de pobreza monetaria general y extrema por macrorregión 2022-2024
B26: Este | C26: 1.6% | D26: 16.8% | E26: 18.4% | F26: 81.6%
A27: 2020 (Q1) | B27: Gran Santo Domingo | C27: 3.4% | D27: 19.0% | E27: 22.3% | F27: 77.7%
B28: Norte o Cibao | C28: 2.0% | D28: 14.7% | E28: 16.7% | F28: 83.3%
B29: Sur | C29: 4.6% | D29: 24.5% | E29: 29.0% | F29: 71.0%
B30: Este | C30: 2.7% | D30: 18.0% | E30: 20.7% | F30: 79.3%
A31: 2020 (Q2) | B31: Gran Santo Domingo | C31: 6.5% | D31: 22.0% | E31: 28.6% | F31: 71.4%
B32: Norte o Cibao | C32: 3.1% | D32: 18.6% | E32: =C32+D32 -> 21.6% | F32: 78.4%
B33: Sur | C33: 4.6% | D33: 28.5% | E33: 33.0% | F33: 67.0%
B34: Este | C34: 7.3% | D34: 24.4% | E34: 31.7% | F34: 68.3%
A35: 2020 (Q3) | B35: Gran Santo Domingo | C35: 3.5% | D35: 21.2% | E35: 24.7% | F35: 75.3%
B36: Norte o Cibao | C36: 2.5% | D36: 15.3% | E36: 17.8% | F36: 82.2%
B37: Sur | C37: 3.0% | D37: 22.0% | E37: =C37+D37 -> 25.04% | F37: 71.0%
B38: Este | C38: 5.6% | D38: 21.9% | E38: 27.5% | F38: 72.5%
A86: Pobreza | B86: Año | C86: Macro-región
C87: Ozama | D87: Norte o Cibao | E87: Sur | F87: Este
A88: General | B88: 2023 | C88: 28.6 | D88: 16.2 | E88: 22.6 | F88: 23.6
B89: 2024* | C89: 22.7 | D89: 14.5 | E89: 19.1 | F89: 18.8
A90: Extrema | B90: 2023 | C90: 3.6 | D90: 2.1 | E90: 4.2 | F90: 3.7
B91: 2024* | C91: 2.5 | D91: 1.8 | E91: 3.0 | F91: 3.2
A92: Fuente: Comité Técnico Interinstitucional de Medición de la Pobreza, a partir del procesamiento de microdatos de la ENCFT del Banco Central de la República Dominicana. *Cifras preliminares

Sheet Gráfico 13
A4: Índice
G6: Gráfico 13. Tasa de pobreza general por sexo de los miembros del hogar 2023-2024*
A7: Tasa de pobreza general por sexo de los miembros del hogar 2023-2024*
A8: Año | B8: Sexo | C8: Pobreza general
A9: 2023 | B9: Hombres | C9: 21.8
B10: Mujeres | C10: 24.1
A11: 2024 | B11: Hombres | C11: 17.8
B12: Mujeres | C12: 20.1

Sheet Gráfico 14
A2: Índice
G6: Gráfico 14. Tasa de pobreza general por sexo del jefe del hogar 2023-2024*
A7: Tasa de pobreza general por sexo del jefe del hogar 2023-2024
A8: Año | B8: Sexo | C8: Pobreza general
A9: 2023 | B9: Hombres | C9: 15.3
B10: Mujeres | C10: 19.9
A11: 2024 | C11: 12.7
C12: 16.1

Sheet Gráfico 15
A1: Índice
B4: Incidencia de la pobreza monetaria por tramo de edad
B5: Grupos de edades | C5: grupos_edad | D5: grupos_edad | E5: grupos_edad | F5: grupos_edad | G5: grupos_edad
A6: Años | B6: Menores de 15 | C6: 15 a 35 años | D6: 35 a 55 años | E6: 55 a 65 años | F6: Mayores de 65 | G6: Total
A7: 2015 | B7: 56.2 | C7: 40.5 | D7: 32.9 | E7: 26.2 | F7: 26.7 | G7: 41.1
A8: 2016 | B8: 49.9 | C8: 34.0 | D8: 26.9 | E8: 21.4 | F8: 22.7 | G8: 34.8
A9: 2017 | B9: 44.8 | C9: 31.1 | D9: 23.8 | E9: 19.8 | F9: 19.0 | G9: 31.2
A10: 2018 | B10: 42.5 | C10: 27.9 | D10: 20.4 | E10: 16.9 | F10: 17.8 | G10: 28.3
A11: 2019 | B11: 40.3 | C11: 25.3 | D11: 18.3 | E11: 13.4 | F11: 14.9 | G11: 25.8
A12: 2020 | B12: 47.0 | C12: 31.8 | D12: 22.2 | E12: 14.2 | F12: 13.3 | G12: 30.4
A13: 2021 | B13: 47.2 | C13: 31.6 | D13: 22.3 | E13: 16.3 | F13: 15.1 | G13: 30.7
A14: 2022 | B14: 43.3 | C14: 28.0 | D14: 20.5 | E14: 13.0 | F14: 14.0 | G14: 27.7
A15: 2023 | B15: 37.2 | C15: 22.9 | D15: 16.4 | E15: 11.5 | F15: 12.3 | G15: 23.0
A16: 2024* | B16: 31.9 | C16: 18.6 | D16: 14.0 | E16: 9.5 | F16: 8.7 | G16: 19.0

Sheet Gráfico 16
A1: Índice
A5: Efectos | B5: 2021-2022 | D5: 2022-2023 | F5: 2023-2024
B6: Pobreza general | C6: Pobreza extrema | D6: Pobreza general | E6: Pobreza extrema | F6: Pobreza general | G6: Pobreza extrema
A7: Efecto Crecimiento | B7: -0.98 | C7: -0.23 | D7: -5.67 | E7: -1.16 | F7: -6.31 | G7: -1.24
A8: Efecto Distribución | B8: -2.03 | C8: -0.13 | D8: 1.01 | E8: 0.63 | F8: 0.74 | G8: 0.09
A9: Cambio total | B9: -3.01 | C9: -0.36 | D9: -4.66 | E9: -0.53 | F9: 1.56 | G9: 0.36
A10: Fuente: Comité Técnico Interinstitucional de Pobreza, a partir del procesamiento de microdatos de la ENCFT del Banco Central de la República Dominicana.
G12: Gráfico 16. Descomposición del cambio de la pobreza general y extrema en los efectos de crecimiento, distribución e inflación 2023-2024* (puntos porcentuales)
A13: 2022-2023
A14: Efectos | B14: Pobreza general | D14: Pobreza extrema
A16: Efecto Crecimiento | B16: -6.31 | D16: -1.24
A17: Efecto Distribución | B17: 0.74 | D17: 0.09
A18: Efecto inflación | B18: 1.56 | D18: 0.36
A19: Cambio total | B19: -4.01 | D19: -0.80

Sheet Gráfico 17
A1: Índice
A7: Descomposción del cambio en la pobreza por fuente de ingresos reales
A8: Componentes del ingresos | B8: 2023-2024*
A9: Ingreso laboral per cápita | B9: -2.5
A10: Ingreso no laboral en especie | B10: -0.3
A11: Ingreso no laboral monetario | B11: -0.3
A12: Ingresos del exterior | B12: -0.2
A13: Transferencias gubernamentales directas | B13: -0.1
A14: Transferencias gubernamentales en especies (PAE) | B14: -0.2
A15: Alquiler imputado | B15: -0.4
A16: Cambio total | B16: -4.0
H19: Welfare | I19: Indicator
H32: 1,388.90

Sheet Gráfico 18
A2: Índice
A6: Año | B6: Pobreza general oficial | C6: Pobreza general sin remesas del exterior
A7: 2015 | B7: 41.1 | C7: 43.2
A8: 2016 | B8: 34.8 | C8: 37.3
A9: 2017 | B9: 31.2 | C9: 33.6
A10: 2018 | B10: 28.3 | C10: 30.2
A11: 2019 | B11: 25.8 | C11: 27.9
A12: 2020 | B12: 30.4 | C12: 32.7
A13: 2021 | B13: 30.7 | C13: 32.8
A14: 2022 | B14: 27.7 | C14: 29.7
A15: 2023 | B15: 23.0 | C15: 25.2
A16: 2024* | B16: 19.0 | C16: 21.0

Sheet Gráfico 19
A2: Índice
A6: Año | B6: Pobreza general oficial | C6: Pobreza general sin PAE | D6: Pobreza general sin transferencias estatales monetarias | E6: Pobreza general sin transferencias estatales (PAE + transferencias monetarias) | F6: Pobreza general sin alquiler imputado
A7: 2015 | B7: 41.1 | C7: 42.5 | D7: 42.4 | E7: 43.8 | F7: 47.6
A8: 2016 | B8: 34.8 | C8: 36.5 | D8: 36.1 | E8: 37.8 | F8: 41.1
A9: 2017 | B9: 31.2 | C9: 33.8 | D9: 32.6 | E9: 35.1 | F9: 37.7
A10: 2018 | B10: 28.3 | C10: 30.9 | D10: 29.6 | E10: 32.2 | F10: 34.5
A11: 2019 | B11: 25.8 | C11: 28.8 | D11: 27.0 | E11: 29.8 | F11: 31.8
A12: 2020 | B12: 30.4 | C12: 31.7 | D12: 37.1 | E12: 38.3 | F12: 36.5
A13: 2021 | B13: 30.7 | C13: 32.3 | D13: 33.8 | E13: 35.3 | F13: 37.3
A14: 2022 | B14: 27.7 | C14: 29.7 | D14: 29.9 | E14: 32.0 | F14: 34.0
A15: 2023 | B15: 23.0 | C15: 25.4 | D15: 25.1 | E15: 27.5 | F15: 28.9
A16: 2024* | B16: 19.0 | C16: 21.0 | D16: 20.7 | E16: 22.9 | F16: 24.5
A17: Fuente: Comité Técnico Interinstitucional de Medición de la Pobreza, a partir del procesamiento de microdatos de la ENCFT del Banco Central de la República Dominicana. *Cifras preliminares
H18: Gráfico 14. Tasa de pobreza general con y sin algunos componentes del ingreso 2023-2024* (porcentaje, %)
H23: FGT_pobreza)

Sheet Gráfico 20
A2: Índice
B5: Índice de Gini
A6: Año | B6: Nacional | C6: Urbana | D6: Rural
A7: 2015 | B7: 0.445 | C7: 0.450 | D7: 0.392
A8: 2016 | B8: 0.424 | C8: 0.429 | D8: 0.375
A9: 2017 | B9: 0.420 | C9: 0.427 | D9: 0.361
A10: 2018 | B10: 0.428 | C10: 0.437 | D10: 0.355
A11: 2019 | B11: 0.419 | C11: 0.425 | D11: 0.356
A12: 2020 | B12: 0.399 | C12: 0.405 | D12: 0.352
A13: 2021 | B13: 0.388 | C13: 0.394 | D13: 0.345
A14: 2022 | B14: 0.376 | C14: 0.377 | D14: 0.355
A15: 2023 | B15: 0.378 | C15: 0.381 | D15: 0.353
A16: 2024 | B16: 0.386 | C16: 0.388 | D16: 0.363
A17: Fuente: Comité Técnico Interinstitucional de Medición de la Pobreza, con base en cifras oficiales del Banco Central de la República Dominicana. *Cifras preliminares.

Sheet Gráfico 21
A3: Índice
A5: Índice de Gini por macrorregiones, 2016 - 2024*
A6: Año | B6: Este | C6: Ozama | D6: Norte o Cibao | E6: Sur
B7: 0.434 | C7: 0.470 | D7: 0.420 | E7: 0.407
A8: 2016 | B8: 0.437 | C8: 0.437 | D8: 0.406 | E8: 0.393
A9: 2017 | B9: 0.415 | C9: 0.449 | D9: 0.389 | E9: 0.398
A10: 2018 | B10: 0.414 | C10: 0.480 | D10: 0.369 | E10: 0.374
A11: 2019 | B11: 0.410 | C11: 0.461 | D11: 0.373 | E11: 0.376
A12: 2020 | B12: 0.405 | C12: 0.417 | D12: 0.382 | E12: 0.374
A13: 2021 | B13: 0.377 | C13: 0.415 | D13: 0.357 | E13: 0.381
A14: 2022 | B14: 0.347 | C14: 0.394 | D14: 0.355 | E14: 0.381
A15: 2023 | B15: 0.385 | C15: 0.402 | D15: 0.345 | E15: 0.364
A16: 2024* | B16: 0.374 | C16: 0.402 | D16: 0.369 | E16: 0.377
A17: Fuente: Comité Técnico Interinstitucional de Medición de la Pobreza, con base en cifras oficiales del Banco Central de la República Dominicana. *Cifras preliminares

Sheet Gráfico 22
A3: Índice
A5: Índice de Palma por Zona, 2016- 2024
B6: Nacional | C6: Urbana | D6: Rural
A7: 2015 | B7: 2.34 | C7: 2.86 | D7: 0.81
A8: 2016 | B8: 2.10 | C8: 2.56 | D8: 0.68
A9: 2017 | B9: 2.06 | C9: 2.50 | D9: 0.64
A10: 2018 | B10: 2.14 | C10: 2.58 | D10: 0.68
A11: 2019 | B11: 2.05 | C11: 2.50 | D11: 0.57
A12: 2020 | B12: 1.83 | C12: 2.12 | D12: 0.69
A13: 2021 | B13: 1.74 | C13: 2.01 | D13: 0.69
A14: 2022 | B14: 1.63 | C14: 1.81 | D14: 0.85
A15: 2023 | B15: 1.64 | C15: 1.81 | D15: 0.86
A16: 2024* | B16: 1.72 | C16: 1.88 | D16: 0.93
B17: =B15-B16 -> -0.08 | C17: =C15-C16 -> -0.07 | D17: -0.06
A18: Fuente: Comité Técnico Interinstitucional de Pobreza, a partir del procesamiento de microdatos de la ENCFT del Banco Central de la República Dominicana. *Cifras preliminares

Sheet Anexo 1
A2: Índice
A3: Anexo 1. Evolución de pobreza trimestral por trimestre, 2016-2024
A5: Pobreza monetaria por trimestre, 2016-2024*
A7: Primer trimestre | C7: Segundo trimestre | E7: Tercer trimestre | G7: Cuarto trimestre
A8: 2016-T1 | B8: 37.6 | C8: 2016-T2 | D8: 34.7 | E8: 2016-T3 | F8: 35.1 | G8: 2016-T4 | H8: 31.9
A9: 2017-T1 | B9: 32.6 | C9: 2017-T2 | D9: 30.7 | E9: 2017-T3 | F9: 33.3 | G9: 2017-T4 | H9: 28.3
A10: 2018-T1 | B10: 28.7 | C10: 2018-T2 | D10: 28.4 | E10: 2018-T3 | F10: 30.4 | G10: 2018-T4 | H10: 25.6
A11: 2019-T1 | B11: 26.1 | C11: 2019-T2 | D11: 25.9 | E11: 2019-T3 | F11: 27.6 | G11: 2019-T4 | H11: 23.7
A12: 2020-T1 | B12: 26.0 | C12: 2020-T2 | D12: 34.3 | E12: 2020-T3 | F12: 31.7 | G12: 2020-T4 | H12: 29.6
A13: 2021-T1 | B13: 31.1 | C13: 2021-T2 | D13: 31.2 | E13: 2021-T3 | F13: 31.3 | G13: 2021-T4 | H13: 29.1
A14: 2022-T1 | B14: 29.5 | C14: 2022-T2 | D14: 27.6 | E14: 2022-T3 | F14: 28.4 | G14: 2022-T4 | H14: 25.1
A15: 2023-T1 | B15: 24.2 | C15: 2023-T2 | D15: 23.4 | E15: 2023-T3 | F15: 24.4 | G15: 2023-T4 | H15: 19.9
A16: 2024-T1 | B16: 18.9 | C16: 2024-T2 | D16: 19.0 | E16: 2024-T3 | F16: 20.8 | G16: 2024-T4* | H16: 17.2
A17: Fuente: Elaborado por el Comité Técnico de Pobreza (CTP) a partir de la Encuesta Nacional Continua de Fuerza de Trabajo
A18: Anexo 1. Evolución de pobreza trimestral por trimestre, 2016-2024*
A50: Fuente: Comité Técnico Interinstitucional de Medición de la Pobreza, a partir de datos de Encuesta Nacional Continua de Fuerza de Trabajo. *Cifras preliminares

Sheet Anexo 2 y 3
A2: Índice
B5: Anexo 2. Líneas de pobreza monetaria general por persona, según macrorregión 2016-2024* | I5: Anexo 3. Líneas de pobreza monetaria extrema por persona, según macrorregión 2016-2024*
B7: Trimestre | C7: Pobreza General | I7: Trimestre | J7: Pobreza extrema
C8: Ozama | D8: Norte o Cibao | E8: Este | F8: Sur | G8: Nacional | J8: Ozama | K8: Norte o Cibao | L8: Este | M8: Sur | N8: Nacional
B9: 2016-T1 | C9: 6,286.7 | D9: 5,278.4 | E9: 5,330.6 | F9: 4,428.3 | G9: =AVERAGE(C9:F9) -> 5,331.0 | I9: 2016-T1 | J9: 2,641.9 | K9: 2,605.0 | L9: 2,574.9 | M9: 2,318.3 | N9: =AVERAGE(J9:M9) -> 2,535.0
B10: 2016-T2 | C10: 6,306.8 | D10: 5,279.3 | E10: 5,340.8 | F10: 4,424.4 | G10: 5,337.8 | I10: 2016-T2 | J10: 2,650.3 | K10: 2,605.4 | L10: 2,579.8 | M10: 2,316.2 | N10: 2,537.9
B11: 2016-T3 | C11: 6,345.6 | D11: 5,323.0 | E11: 5,385.3 | F11: 4,458.3 | G11: 5,378.0 | I11: 2016-T3 | J11: 2,666.6 | K11: 2,626.9 | L11: 2,601.3 | M11: 2,334.0 | N11: 2,557.2
B12: 2016-T4 | C12: 6,386.4 | D12: 5,337.9 | E12: 5,404.7 | F12: 4,484.0 | G12: 5,403.2 | I12: 2016-T4 | J12: 2,683.8 | K12: 2,634.3 | L12: 2,610.7 | M12: 2,347.5 | N12: 2,569.0
B13: 2017-T1 | C13: 6,495.7 | D13: 5,452.8 | E13: 5,509.1 | F13: 4,583.1 | G13: 5,510.2 | I13: 2017-T1 | J13: 2,729.7 | K13: 2,691.0 | L13: 2,661.1 | M13: 2,399.3 | N13: 2,620.3
B14: 2017-T2 | C14: 6,489.8 | D14: 5,454.5 | E14: 5,499.4 | F14: 4,570.9 | G14: 5,503.7 | I14: 2017-T2 | J14: 2,727.2 | K14: 2,691.9 | L14: 2,656.4 | M14: 2,393.0 | N14: 2,617.1
B15: 2017-T3 | C15: 6,530.1 | D15: 5,507.0 | E15: 5,547.5 | F15: 4,613.8 | G15: 5,549.6 | I15: 2017-T3 | J15: 2,744.2 | K15: 2,717.7 | L15: 2,679.7 | M15: 2,415.4 | N15: 2,639.2
B16: 2017-T4 | C16: 6,611.8 | D16: 5,595.7 | E16: 5,621.1 | F16: 4,678.1 | G16: 5,626.7 | I16: 2017-T4 | J16: 2,778.5 | K16: 2,761.5 | L16: 2,715.2 | M16: 2,449.1 | N16: 2,676.1
B17: 2018-T1 | C17: 6,687.7 | D17: 5,650.8 | E17: 5,702.2 | F17: 4,743.9 | G17: 5,696.1 | I17: 2018-T1 | J17: 2,810.4 | K17: 2,788.7 | L17: 2,754.4 | M17: 2,483.5 | N17: 2,709.2
B18: 2018-T2 | C18: 6,751.8 | D18: 5,713.2 | E18: 5,775.4 | F18: 4,784.6 | G18: 5,756.3 | I18: 2018-T2 | J18: 2,837.3 | K18: 2,819.5 | L18: 2,789.7 | M18: 2,504.9 | N18: 2,737.9
B19: 2018-T3 | C19: 6,757.7 | D19: 5,731.6 | E19: 5,801.4 | F19: 4,796.1 | G19: 5,771.7 | I19: 2018-T3 | J19: 2,839.8 | K19: 2,828.6 | L19: 2,802.3 | M19: 2,510.8 | N19: 2,745.4
B20: 2018-T4 | C20: 6,755.6 | D20: 5,723.7 | E20: 5,794.8 | F20: 4,802.2 | G20: 5,769.1 | I20: 2018-T4 | J20: 2,838.9 | K20: 2,824.7 | L20: 2,799.1 | M20: 2,514.0 | N20: 2,744.2
B21: 2019-T1 | C21: 6,747.6 | D21: 5,723.3 | E21: 5,800.5 | F21: 4,813.6 | G21: 5,771.2 | I21: 2019-T1 | J21: 2,835.5 | K21: 2,824.5 | L21: 2,801.9 | M21: 2,520.0 | N21: 2,745.5
B22: 2019-T2 | C22: 6,818.1 | D22: 5,797.6 | E22: 5,863.1 | F22: 4,869.7 | G22: 5,837.1 | I22: 2019-T2 | J22: 2,865.2 | K22: 2,861.2 | L22: 2,832.1 | M22: 2,549.4 | N22: 2,777.0
B23: 2019-T3 | C23: 6,838.8 | D23: 5,850.9 | E23: 5,899.7 | F23: 4,911.9 | G23: 5,875.3 | I23: 2019-T3 | J23: 2,873.9 | K23: 2,887.5 | L23: 2,849.8 | M23: 2,571.5 | N23: 2,795.6
B24: 2019-T4 | C24: 6,929.0 | D24: 5,929.6 | E24: 5,981.7 | F24: 5,009.8 | G24: 5,962.5 | I24: 2019-T4 | J24: 2,911.8 | K24: 2,926.3 | L24: 2,889.4 | M24: 2,622.7 | N24: 2,837.5
B25: 2020-T1 | C25: 6,954.4 | D25: 5,959.7 | E25: 6,006.4 | F25: 5,022.0 | G25: 5,985.6 | I25: 2020-T1 | J25: 2,922.5 | K25: 2,941.2 | L25: 2,901.3 | M25: 2,629.1 | N25: 2,848.5
B26: 2020-T2 | C26: 6,861.1 | D26: 5,864.9 | E26: 5,901.0 | F26: 4,966.9 | G26: 5,898.5 | I26: 2020-T2 | J26: 2,883.2 | K26: 2,894.4 | L26: 2,850.4 | M26: 2,600.3 | N26: 2,807.1
B27: 2020-T3 | C27: 7,150.7 | D27: 6,132.8 | E27: 6,185.8 | F27: 5,181.4 | G27: 6,162.7 | I27: 2020-T3 | J27: 3,004.9 | K27: 3,026.6 | L27: 2,988.0 | M27: 2,712.6 | N27: 2,933.0
B28: 2020-T4 | C28: 7,284.7 | D28: 6,228.9 | E28: 6,293.1 | F28: 5,327.9 | G28: 6,283.7 | I28: 2020-T4 | J28: 3,061.3 | K28: 3,074.0 | L28: 3,039.8 | M28: 2,789.3 | N28: 2,991.1
B29: 2021-T1 | C29: 7,428.2 | D29: 6,364.1 | E29: 6,445.0 | F29: 5,459.7 | G29: 6,424.3 | I29: 2021-T1 | J29: 3,121.6 | K29: 3,140.7 | L29: 3,113.2 | M29: 2,858.3 | N29: 3,058.4
B30: 2021-T2 | C30: 7,529.7 | D30: 6,486.1 | E30: 6,559.1 | F30: 5,573.4 | G30: 6,537.1 | I30: 2021-T2 | J30: 3,164.2 | K30: 3,200.9 | L30: 3,168.3 | M30: 2,917.8 | N30: 3,112.8
B31: 2021-T3 | C31: 7,656.0 | D31: 6,630.9 | E31: 6,688.5 | F31: 5,709.7 | G31: 6,671.2 | I31: 2021-T3 | J31: 3,217.3 | K31: 3,272.4 | L31: 3,230.8 | M31: 2,989.1 | N31: 3,177.4
B32: 2021-T4 | C32: 7,813.7 | D32: 6,785.7 | E32: 6,831.5 | F32: 5,841.5 | G32: 6,818.1 | I32: 2021-T4 | J32: 3,283.6 | K32: 3,348.8 | L32: 3,299.9 | M32: 3,058.1 | N32: 3,247.6
B33: 2022-T1 | C33: 8,014.7 | D33: 7,003.4 | E33: 7,025.6 | F33: 6,016.6 | G33: 7,015.1 | I33: 2022-T1 | J33: 3,368.0 | K33: 3,456.2 | L33: 3,393.6 | M33: 3,149.8 | N33: 3,341.9
B34: 2022-T2 | C34: 8,159.0 | D34: 7,170.7 | E34: 7,189.6 | F34: 6,164.5 | G34: 7,170.9 | I34: 2022-T2 | J34: 3,428.6 | K34: 3,538.8 | L34: 3,472.9 | M34: 3,227.2 | N34: 3,416.9
B35: 2022-T3 | C35: 8,257.8 | D35: 7,287.1 | E35: 7,275.9 | F35: 6,244.7 | G35: 7,266.4 | I35: 2022-T3 | J35: 3,470.2 | K35: 3,596.2 | L35: 3,514.5 | M35: 3,269.2 | N35: 3,462.5
B36: 2022-T4 | C36: 8,330.8 | D36: 7,373.7 | E36: 7,371.4 | F36: 6,306.6 | G36: 7,345.6 | I36: 2022-T4 | J36: 3,500.9 | K36: 3,639.0 | L36: 3,560.7 | M36: 3,301.6 | N36: 3,500.5
B37: 2023-T1 | C37: 8,482.0 | D37: 7,474.8 | E37: 7,515.0 | F37: 6,430.9 | G37: 7,475.7 | I37: 2023-T1 | J37: 3,564.4 | K37: 3,688.9 | L37: 3,630.1 | M37: 3,366.7 | N37: 3,562.5
B38: 2023-T2 | C38: 8,497.0 | D38: 7,501.1 | E38: 7,554.6 | F38: 6,436.9 | G38: 7,497.4 | I38: 2023-T2 | J38: 3,570.7 | K38: 3,701.8 | L38: 3,649.2 | M38: 3,369.8 | N38: 3,572.9
B39: 2023-T3 | C39: 8,594.4 | D39: 7,597.4 | E39: 7,623.7 | F39: 6,526.8 | G39: 7,585.6 | I39: 2023-T3 | J39: 3,611.6 | K39: 3,749.4 | L39: 3,682.5 | M39: 3,416.9 | N39: 3,615.1
B40: 2023-T4 | C40: 8,661.3 | D40: 7,659.5 | E40: 7,692.0 | F40: 6,568.2 | G40: 7,645.3 | I40: 2023-T4 | J40: 3,639.7 | K40: 3,780.0 | L40: 3,715.6 | M40: 3,438.6 | N40: 3,643.5
B41: 2024-T1 | C41: 8,759.4 | D41: 7,718.2 | E41: 7,771.0 | F41: 6,651.2 | G41: 7,725.0 | I41: 2024-T1 | J41: 3,681.0 | K41: 3,809.0 | L41: 3,753.7 | M41: 3,482.0 | N41: 3,681.4
B42: 2024-T2 | C42: 8,774.2 | D42: 7,723.5 | E42: 7,788.8 | F42: 6,671.2 | G42: 7,739.4 | I42: 2024-T2 | J42: 3,687.2 | K42: 3,811.6 | L42: 3,762.3 | M42: 3,492.5 | N42: 3,688.4
B43: 2024-T3 | C43: 8,883.7 | D43: 7,844.1 | E43: 7,896.5 | F43: 6,783.1 | G43: 7,851.8 | I43: 2024-T3 | J43: 3,733.2 | K43: 3,871.1 | L43: 3,814.3 | M43: 3,551.1 | N43: 3,742.4
B44: 2024-T4 | C44: 8,941.9 | D44: 7,884.9 | E44: 7,924.4 | F44: 6,812.2 | G44: 7,890.9 | I44: 2024-T4 | J44: 3,757.7 | K44: 3,891.3 | L44: 3,827.8 | M44: 3,566.3 | N44: 3,760.8
B45: Fuente: Elaborado por el Comité Técnico de Pobreza (CTP) a partir de la Encuesta Nacional de Gastos e Ingresos de los Hogares (ENGIH) del Banco Central de la República Dominicana (BCRD). | I45: Fuente: Elaborado por el Comité Técnico de Pobreza (CTP) a partir de la Encuesta Nacional de Gastos e Ingresos de los Hogares (ENGIH) del Banco Central de la República Dominicana (BCRD).
B46: Nota: Líneas de pobreza general a junio de 2018: Ozama o Metropolitana: 6758.73; Norte o Cibao: 5730.29; Sureste: 5786.84; Suroeste: 4800.02 | I46: Nota: Líneas de pobreza extrema a junio de 2018: Ozama o Metropolitana: 2840.22; Norte o Cibao: 2827.94; Sureste: 2795.27; Suroeste: 2512.90

Sheet Anexo 4 y 5
A1: Anexos 4 y 5. Coeficientes de variación e intervalos de confianza de las tasas de pobreza general y extrema, según macrorregión 2016-2024
I4: Índice
B5: Anexo 4. Coeficientes de variación e intervalos de confianzas de las tasas de pobreza monetaria general, según macrorregión 2016-2024* | J5: Anexo 5. Coeficientes de variación e intervalos de confianzas de las tasas de pobreza monetaria extrema, según macrorregión, 2016-2024*
B7: Pobreza general | J7: Pobreza extrema
B8: Año | C8: Macrorregión | D8: Porcentaje | E8: Error estandar | F8: Min | G8: Max | H8: Coeficiente de variación (%) | J8: Año | K8: Macrorregión | L8: Porcentaje | M8: Error estandar | N8: Min | O8: Max | P8: Coeficiente de variación (%)
B9: 2016 | C9: Nacional | D9: 34.8 | E9: 0.7 | F9: 33.5 | G9: 36.2 | H9: 2.0 | J9: 2016 | K9: Nacional | L9: 5.86 | M9: 0.27 | N9: 5.34 | O9: 6.39 | P9: 4.59
B10: 2016 | C10: Ozama | D10: 41.15 | E10: 1.30 | F10: 38.60 | G10: 43.70 | H10: 3.16 | J10: 2016 | K10: Ozama | L10: 6.40 | M10: 0.46 | N10: 5.50 | O10: 7.30 | P10: 7.16
B11: 2016 | C11: Norte o Cibao | D11: 28.42 | E11: 1.00 | F11: 26.45 | G11: 30.39 | H11: 3.53 | J11: 2016 | K11: Norte o Cibao | L11: 4.22 | M11: 0.37 | N11: 3.48 | O11: 4.95 | P11: 8.86
B12: 2016 | C12: Este | D12: 34.98 | E12: 1.94 | F12: 31.18 | G12: 38.79 | H12: 5.54 | J12: 2016 | K12: Este | L12: 7.53 | M12: 0.91 | N12: 5.74 | O12: 9.31 | P12: 12.09
B13: 2016 | C13: Sur | D13: 33.48 | E13: 1.58 | F13: 30.37 | G13: 36.58 | H13: 4.73 | J13: 2016 | K13: Sur | L13: 6.69 | M13: 0.71 | N13: 5.29 | O13: 8.08 | P13: 10.64
B14: 2017 | C14: Nacional | D14: 31.2 | E14: 0.6 | F14: 30.0 | G14: 32.5 | H14: 2.0 | J14: 2017 | K14: Nacional | L14: 4.73 | M14: 0.26 | N14: 4.23 | O14: 5.24 | P14: 5.42
B15: 2017 | C15: Ozama | D15: 38.49 | E15: 1.23 | F15: 36.07 | G15: 40.91 | H15: 3.20 | J15: 2017 | K15: Ozama | L15: 5.33 | M15: 0.44 | N15: 4.46 | O15: 6.19 | P15: 8.28
B16: 2017 | C16: Norte o Cibao | D16: 24.91 | E16: 0.90 | F16: 23.15 | G16: 26.67 | H16: 3.60 | J16: 2017 | K16: Norte o Cibao | L16: 3.81 | M16: 0.42 | N16: 2.98 | O16: 4.65 | P16: 11.14
B17: 2017 | C17: Este | D17: 30.45 | E17: 1.64 | F17: 27.23 | G17: 33.68 | H17: 5.39 | J17: 2017 | K17: Este | L17: 5.35 | M17: 0.74 | N17: 3.90 | O17: 6.81 | P17: 13.84
B18: 2017 | C18: Sur | D18: 28.24 | E18: 1.43 | F18: 25.44 | G18: 31.04 | H18: 5.06 | J18: 2017 | K18: Sur | L18: 4.77 | M18: 0.60 | N18: 3.60 | O18: 5.95 | P18: 12.56
B19: 2018 | C19: Nacional | D19: 28.3 | E19: 0.6 | F19: 27.0 | G19: 29.5 | H19: 2.2 | J19: 2018 | K19: Nacional | L19: 3.44 | M19: 0.20 | N19: 3.05 | O19: 3.83 | P19: 5.77
B20: 2018 | C20: Ozama | D20: 34.59 | E20: 1.19 | F20: 32.26 | G20: 36.92 | H20: 3.43 | J20: 2018 | K20: Ozama | L20: 3.62 | M20: 0.33 | N20: 2.98 | O20: 4.26 | P20: 8.98
B21: 2018 | C21: Norte o Cibao | D21: 22.40 | E21: 0.96 | F21: 20.52 | G21: 24.28 | H21: 4.28 | J21: 2018 | K21: Norte o Cibao | L21: 2.81 | M21: 0.32 | N21: 2.18 | O21: 3.45 | P21: 11.53
B22: 2018 | C22: Este | D22: 26.54 | E22: 1.65 | F22: 23.31 | G22: 29.78 | H22: 6.21 | J22: 2018 | K22: Este | L22: 3.73 | M22: 0.60 | N22: 2.56 | O22: 4.91 | P22: 16.07
B23: 2018 | C23: Sur | D23: 27.10 | E23: 1.35 | F23: 24.45 | G23: 29.75 | H23: 4.98 | J23: 2018 | K23: Sur | L23: 4.06 | M23: 0.51 | N23: 3.06 | O23: 5.07 | P23: 12.59
B24: 2019 | C24: Nacional | D24: 25.8 | E24: 0.6 | F24: 24.6 | G24: 27.0 | H24: 2.4 | J24: 2019 | K24: Nacional | L24: 2.87 | M24: 0.18 | N24: 2.51 | O24: 3.23 | P24: 6.40
B25: 2019 | C25: Ozama | D25: 32.40 | E25: 1.16 | F25: 30.12 | G25: 34.69 | H25: 3.59 | J25: 2019 | K25: Ozama | L25: 3.55 | M25: 0.35 | N25: 2.87 | O25: 4.23 | P25: 9.79
B26: 2019 | C26: Norte o Cibao | D26: 19.58 | E26: 0.87 | F26: 17.87 | G26: 21.30 | H26: 4.46 | J26: 2019 | K26: Norte o Cibao | L26: 1.73 | M26: 0.22 | N26: 1.31 | O26: 2.15 | P26: 12.46
B27: 2019 | C27: Este | D27: 23.91 | E27: 1.75 | F27: 20.48 | G27: 27.34 | H27: 7.31 | J27: 2019 | K27: Este | L27: 3.13 | M27: 0.56 | N27: 2.03 | O27: 4.22 | P27: 17.81
B28: 2019 | C28: Sur | D28: 24.57 | E28: 1.58 | F28: 21.47 | G28: 27.66 | H28: 6.42 | J28: 2019 | K28: Sur | L28: 3.40 | M28: 0.48 | N28: 2.45 | O28: 4.35 | P28: 14.23
B29: 2020 | C29: Nacional | D29: 30.4 | E29: 0.7 | F29: 29.1 | G29: 31.8 | H29: 2.3 | J29: 2020 | K29: Nacional | L29: 4.93 | M29: 0.27 | N29: 4.40 | O29: 5.45 | P29: 5.42
B30: 2020 | C30: Ozama | D30: 37.86 | E30: 1.20 | F30: 35.51 | G30: 40.21 | H30: 3.16 | J30: 2020 | K30: Ozama | L30: 5.61 | M30: 0.42 | N30: 4.79 | O30: 6.43 | P30: 7.46
B31: 2020 | C31: Norte o Cibao | D31: 23.72 | E31: 1.18 | F31: 21.40 | G31: 26.05 | H31: 4.99 | J31: 2020 | K31: Norte o Cibao | L31: 3.52 | M31: 0.41 | N31: 2.71 | O31: 4.32 | P31: 11.67
B32: 2020 | C32: Este | D32: 33.00 | E32: 1.79 | F32: 29.48 | G32: 36.52 | H32: 5.44 | J32: 2020 | K32: Este | L32: 7.02 | M32: 0.99 | N32: 5.07 | O32: 8.97 | P32: 14.16
B33: 2020 | C33: Sur | D33: 24.85 | E33: 1.59 | F33: 21.74 | G33: 27.96 | H33: 6.38 | J33: 2020 | K33: Sur | L33: 4.61 | M33: 0.68 | N33: 3.28 | O33: 5.93 | P33: 14.67
B34: 2021 | C34: Nacional | D34: 30.7 | E34: 0.6 | F34: 29.5 | G34: 31.9 | H34: 2.0 | J34: 2021 | K34: Nacional | L34: 4.13 | M34: 0.22 | N34: 3.69 | O34: 4.56 | P34: 5.36
B35: 2021 | C35: Ozama | D35: 38.64 | E35: 1.15 | F35: 36.38 | G35: 40.89 | H35: 2.98 | J35: 2021 | K35: Ozama | L35: 5.06 | M35: 0.41 | N35: 4.27 | O35: 5.86 | P35: 8.01
B36: 2021 | C36: Norte o Cibao | D36: 23.12 | E36: 0.95 | F36: 21.26 | G36: 24.98 | H36: 4.09 | J36: 2021 | K36: Norte o Cibao | L36: 1.95 | M36: 0.24 | N36: 1.48 | O36: 2.43 | P36: 12.47
B37: 2021 | C37: Este | D37: 28.29 | E37: 1.56 | F37: 25.23 | G37: 31.35 | H37: 5.51 | J37: 2021 | K37: Este | L37: 4.99 | M37: 0.83 | N37: 3.37 | O37: 6.61 | P37: 16.56
B38: 2021 | C38: Sur | D38: 29.08 | E38: 1.26 | F38: 26.60 | G38: 31.56 | H38: 4.34 | J38: 2021 | K38: Sur | L38: 5.57 | M38: 0.54 | N38: 4.52 | O38: 6.63 | P38: 9.62
B39: 2022 | C39: Nacional | D39: 27.7 | E39: 0.6 | F39: 26.4 | G39: 28.9 | H39: 2.3 | J39: 2022 | K39: Nacional | L39: 3.77 | M39: 0.22 | N39: 3.34 | O39: 4.20 | P39: 5.82
B40: 2022 | C40: Ozama | D40: 34.11 | E40: 1.18 | F40: 31.80 | G40: 36.42 | H40: 3.45 | J40: 2022 | K40: Ozama | L40: 4.30 | M40: 0.40 | N40: 3.52 | O40: 5.08 | P40: 9.25
B41: 2022 | C41: Norte o Cibao | D41: 21.31 | E41: 0.89 | F41: 19.57 | G41: 23.05 | H41: 4.17 | J41: 2022 | K41: Norte o Cibao | L41: 2.70 | M41: 0.29 | N41: 2.12 | O41: 3.27 | P41: 10.83
B42: 2022 | C42: Este | D42: 24.48 | E42: 1.59 | F42: 21.36 | G42: 27.59 | H42: 6.49 | J42: 2022 | K42: Este | L42: 3.10 | M42: 0.41 | N42: 2.30 | O42: 3.90 | P42: 13.20
B43: 2022 | C43: Sur | D43: 27.56 | E43: 1.48 | F43: 24.65 | G43: 30.47 | H43: 5.38 | J43: 2022 | K43: Sur | L43: 5.12 | M43: 0.68 | N43: 3.78 | O43: 6.45 | P43: 13.29
B44: 2023 | C44: Nacional | D44: 23.0 | E44: 0.6 | F44: 21.9 | G44: 24.1 | H44: 2.5 | J44: 2023 | K44: Nacional | L44: 3.24 | M44: 0.19 | N44: 2.86 | O44: 3.62 | P44: 6.01
B45: 2023 | C45: Ozama | D45: 28.65 | E45: 1.08 | F45: 26.52 | G45: 30.77 | H45: 3.78 | J45: 2023 | K45: Ozama | L45: 3.63 | M45: 0.37 | N45: 2.90 | O45: 4.37 | P45: 10.30
B46: 2023 | C46: Norte o Cibao | D46: 16.23 | E46: 0.86 | F46: 14.55 | G46: 17.92 | H46: 5.29 | J46: 2023 | K46: Norte o Cibao | L46: 2.06 | M46: 0.25 | N46: 1.58 | O46: 2.55 | P46: 11.99
B47: 2023 | C47: Este | D47: 23.60 | E47: 1.42 | F47: 20.81 | G47: 26.39 | H47: 6.02 | J47: 2023 | K47: Este | L47: 3.74 | M47: 0.52 | N47: 2.73 | O47: 4.75 | P47: 13.79
B48: 2023 | C48: Sur | D48: 22.62 | E48: 1.26 | F48: 20.15 | G48: 25.08 | H48: 5.56 | J48: 2023 | K48: Sur | L48: 4.21 | M48: 0.48 | N48: 3.28 | O48: 5.15 | P48: 11.34
B49: 2024* | C49: Nacional | D49: 18.98 | E49: 0.55 | F49: 17.90 | G49: 20.06 | H49: 2.90 | J49: 2024* | K49: Nacional | L49: 2.44 | M49: 0.16 | N49: 2.12 | O49: 2.76 | P49: 6.74
B50: 2024* | C50: Ozama | D50: 22.73 | E50: 1.05 | F50: 20.67 | G50: 24.80 | H50: 4.62 | J50: 2024* | K50: Ozama | L50: 2.46 | M50: 0.28 | N50: 1.91 | O50: 3.00 | P50: 11.30
B51: 2024* | C51: Norte o Cibao | D51: 14.50 | E51: 0.86 | F51: 12.82 | G51: 16.18 | H51: 5.91 | J51: 2024* | K51: Norte o Cibao | L51: 1.82 | M51: 0.28 | N51: 1.26 | O51: 2.37 | P51: 15.54
B52: 2024* | C52: Este | D52: 18.81 | E52: 1.13 | F52: 16.59 | G52: 21.04 | H52: 6.03 | J52: 2024* | K52: Este | L52: 3.24 | M52: 0.46 | N52: 2.34 | O52: 4.13 | P52: 14.11
B53: 2024* | C53: Sur | D53: 19.06 | E53: 1.21 | F53: 16.68 | G53: 21.43 | H53: 6.35 | J53: 2024* | K53: Sur | L53: 3.01 | M53: 0.38 | N53: 2.27 | O53: 3.76 | P53: 12.64
B54: Fuente: Elaborado por el Comité Técnico de Pobreza (CTP) a partir de la Encuesta Nacional Continua de Fuerza de Trabajo (ENCFT) del Banco Central de la República Dominicana (BCRD). | J54: Fuente: Elaborado por el Comité Técnico de Pobreza (CTP) a partir de la Encuesta Nacional Continua de Fuerza de Trabajo (ENCFT) del Banco Central de la República Dominicana (BCRD).

Sheet Anexo 6 y 7
A3: Índice
C5: Anexo 6. Coeficientes de variación e intervalos de confianzas de las tasas de pobreza monetaria general, 2016-2024* | J5: Anexo 7. Coeficientes de variación e intervalos de confianzas de las tasas de pobreza monetaria extrema, 2016-2024*
C7: Pobreza General | J7: Pobreza extrema
C8: Año | D8: Porcentaje | E8: Error estandar | F8: Min | G8: Max | H8: Coeficiente de variación (%) | J8: Año | K8: Porcentaje | L8: Error estandar | M8: Min | N8: Max | O8: Coeficiente de variación (%)
C9: 2016 | D9: 34.8 | E9: 0.7 | F9: 33.5 | G9: 36.2 | H9: 2.0 | J9: 2016 | K9: 5.9 | L9: 0.3 | M9: 5.3 | N9: 6.4 | O9: 4.6
C10: 2017 | D10: 31.2 | E10: 0.6 | F10: 30.0 | G10: 32.5 | H10: 2.0 | J10: 2017 | K10: 4.7 | L10: 0.3 | M10: 4.2 | N10: 5.2 | O10: 5.4
C11: 2018 | D11: 28.3 | E11: 0.6 | F11: 27.0 | G11: 29.5 | H11: 2.2 | J11: 2018 | K11: 3.4 | L11: 0.2 | M11: 3.1 | N11: 3.8 | O11: 5.8
C12: 2019 | D12: 25.8 | E12: 0.6 | F12: 24.6 | G12: 27.0 | H12: 2.4 | J12: 2019 | K12: 2.9 | L12: 0.2 | M12: 2.5 | N12: 3.2 | O12: 6.4
C13: 2020 | D13: 30.4 | E13: 0.7 | F13: 29.1 | G13: 31.8 | H13: 2.3 | J13: 2020 | K13: 4.9 | L13: 0.3 | M13: 4.4 | N13: 5.5 | O13: 5.4
C14: 2021 | D14: 30.7 | E14: 0.6 | F14: 29.5 | G14: 31.9 | H14: 2.0 | J14: 2021 | K14: 4.1 | L14: 0.2 | M14: 3.7 | N14: 4.6 | O14: 5.4
C15: 2022 | D15: 27.7 | E15: 0.6 | F15: 26.4 | G15: 28.9 | H15: 2.3 | J15: 2022 | K15: 3.8 | L15: 0.2 | M15: 3.3 | N15: 4.2 | O15: 5.8
C16: 2023 | D16: 23.0 | E16: 0.6 | F16: 21.9 | G16: 24.1 | H16: 2.5 | J16: 2023 | K16: 3.2 | L16: 0.2 | M16: 2.9 | N16: 3.6 | O16: 6.0
C17: 2024* | D17: 19.0 | E17: 0.6 | F17: 17.9 | G17: 20.1 | H17: 2.9 | J17: 2024* | K17: 2.4 | L17: 0.2 | M17: 2.1 | N17: 2.8 | O17: 6.7
C18: Fuente: Elaborado por el Comité Técnico de Pobreza (CTP) a partir de la Encuesta Nacional Continua de Fuerza de Trabajo (ENCFT) del Banco Central de la República Dominicana (BCRD). | J18: Fuente: Elaborado por el Comité Técnico de Pobreza (CTP) a partir de la Encuesta Nacional Continua de Fuerza de Trabajo (ENCFT) del Banco Central de la República Dominicana (BCRD).

Sheet Anexo 8 y 9
A3: Índice
B5: Anexo 8. Coeficientes de variación e intervalos de confianzas de las tasas de pobreza monetaria general, según zona, 2016-2024* | J5: Anexo 9. Coeficientes de variación e intervalos de confianzas de las tasas de pobreza monetaria general, según zona, 2016-2024*
B7: Pobreza General | J7: Pobreza extrema
B8: Año | C8: Zona | D8: Porcentaje | E8: Error estandar | F8: Min | G8: Max | H8: Coeficiente de variación (%) | J8: Año | K8: Zona | L8: Porcentaje | M8: Error estandar | N8: Min | O8: Max | P8: Coeficiente de variación (%)
B9: 2016 | C9: Nacional | D9: 34.8 | E9: 0.7 | F9: 33.5 | G9: 36.2 | H9: 2.0 | J9: 2016 | K9: Nacional | L9: 5.9 | M9: 0.3 | N9: 5.3 | O9: 6.4 | P9: 4.6
B10: 2016 | C10: Urbana | D10: 33.4 | E10: 0.8 | F10: 31.9 | G10: 35.0 | H10: 2.4 | J10: 2016 | K10: Urbana | L10: 5.2 | M10: 0.3 | N10: 4.6 | O10: 5.7 | P10: 5.8
B11: 2016 | C11: Rural | D11: 40.1 | E11: 1.2 | F11: 37.8 | G11: 42.4 | H11: 3.0 | J11: 2016 | K11: Rural | L11: 8.6 | M11: 0.6 | N11: 7.5 | O11: 9.8 | P11: 7.0
B12: 2017 | C12: Nacional | D12: 31.2 | E12: 0.6 | F12: 30.0 | G12: 32.5 | H12: 2.0 | J12: 2017 | K12: Nacional | L12: 4.7 | M12: 0.3 | N12: 4.2 | O12: 5.2 | P12: 5.4
B13: 2017 | C13: Urbana | D13: 29.9 | E13: 0.7 | F13: 28.4 | G13: 31.3 | H13: 2.5 | J13: 2017 | K13: Urbana | L13: 4.3 | M13: 0.3 | N13: 3.7 | O13: 4.8 | P13: 6.8
B14: 2017 | C14: Rural | D14: 36.8 | E14: 1.1 | F14: 34.5 | G14: 39.0 | H14: 3.1 | J14: 2017 | K14: Rural | L14: 6.7 | M14: 0.5 | N14: 5.6 | O14: 7.7 | P14: 8.2
B15: 2018 | C15: Nacional | D15: 28.3 | E15: 0.6 | F15: 27.0 | G15: 29.5 | H15: 2.2 | J15: 2018 | K15: Nacional | L15: 3.4 | M15: 0.2 | N15: 3.1 | O15: 3.8 | P15: 5.8
B16: 2018 | C16: Urbana | D16: 27.3 | E16: 0.7 | F16: 25.9 | G16: 28.7 | H16: 2.6 | J16: 2018 | K16: Urbana | L16: 3.2 | M16: 0.2 | N16: 2.8 | O16: 3.6 | P16: 7.0
B17: 2018 | C17: Rural | D17: 32.4 | E17: 1.3 | F17: 29.9 | G17: 34.8 | H17: 3.9 | J17: 2018 | K17: Rural | L17: 4.5 | M17: 0.5 | N17: 3.6 | O17: 5.4 | P17: 9.9
B18: 2019 | C18: Nacional | D18: 25.8 | E18: 0.6 | F18: 24.6 | G18: 27.0 | H18: 2.4 | J18: 2019 | K18: Nacional | L18: 2.9 | M18: 0.2 | N18: 2.5 | O18: 3.2 | P18: 6.4
B19: 2019 | C19: Urbana | D19: 24.5 | E19: 0.7 | F19: 23.1 | G19: 25.9 | H19: 3.0 | J19: 2019 | K19: Urbana | L19: 2.7 | M19: 0.2 | N19: 2.3 | O19: 3.1 | P19: 7.6
B20: 2019 | C20: Rural | D20: 31.6 | E20: 1.2 | F20: 29.3 | G20: 34.0 | H20: 3.7 | J20: 2019 | K20: Rural | L20: 3.5 | M20: 0.4 | N20: 2.7 | O20: 4.2 | P20: 11.0
B21: 2020 | C21: Nacional | D21: 30.4 | E21: 0.7 | F21: 29.1 | G21: 31.8 | H21: 2.3 | J21: 2020 | K21: Nacional | L21: 4.9 | M21: 0.3 | N21: 4.4 | O21: 5.5 | P21: 5.4
B22: 2020 | C22: Urbana | D22: 29.8 | E22: 0.8 | F22: 28.2 | G22: 31.3 | H22: 2.7 | J22: 2020 | K22: Urbana | L22: 4.7 | M22: 0.3 | N22: 4.2 | O22: 5.3 | P22: 6.2
B23: 2020 | C23: Rural | D23: 33.3 | E23: 1.4 | F23: 30.7 | G23: 36.0 | H23: 4.1 | J23: 2020 | K23: Rural | L23: 5.8 | M23: 0.7 | N23: 4.5 | O23: 7.1 | P23: 11.3
B24: 2021 | C24: Nacional | D24: 30.7 | E24: 0.6 | F24: 29.5 | G24: 31.9 | H24: 2.0 | J24: 2021 | K24: Nacional | L24: 4.1 | M24: 0.2 | N24: 3.7 | O24: 4.6 | P24: 5.4
B25: 2021 | C25: Urbana | D25: 30.1 | E25: 0.7 | F25: 28.7 | G25: 31.5 | H25: 2.3 | J25: 2021 | K25: Urbana | L25: 4.0 | M25: 0.3 | N25: 3.5 | O25: 4.5 | P25: 6.3
B26: 2021 | C26: Rural | D26: 33.5 | E26: 1.1 | F26: 31.4 | G26: 35.6 | H26: 3.2 | J26: 2021 | K26: Rural | L26: 4.9 | M26: 0.4 | N26: 4.1 | O26: 5.8 | P26: 9.0
B27: 2022 | C27: Nacional | D27: 27.7 | E27: 0.6 | F27: 26.4 | G27: 28.9 | H27: 2.3 | J27: 2022 | K27: Nacional | L27: 3.8 | M27: 0.2 | N27: 3.3 | O27: 4.2 | P27: 5.8
B28: 2022 | C28: Urbana | D28: 27.0 | E28: 0.7 | F28: 25.6 | G28: 28.4 | H28: 2.7 | J28: 2022 | K28: Urbana | L28: 3.6 | M28: 0.3 | N28: 3.1 | O28: 4.1 | P28: 6.9
B29: 2022 | C29: Rural | D29: 30.9 | E29: 1.1 | F29: 28.7 | G29: 33.1 | H29: 3.6 | J29: 2022 | K29: Rural | L29: 4.7 | M29: 0.5 | N29: 3.8 | O29: 5.6 | P29: 9.8
B30: 2023 | C30: Nacional | D30: 23.0 | E30: 0.6 | F30: 21.9 | G30: 24.1 | H30: 2.5 | J30: 2023 | K30: Nacional | L30: 3.2 | M30: 0.2 | N30: 2.9 | O30: 3.6 | P30: 6.0
B31: 2023 | C31: Urbana | D31: 22.7 | E31: 0.7 | F31: 21.4 | G31: 24.0 | H31: 2.9 | J31: 2023 | K31: Urbana | L31: 3.1 | M31: 0.2 | N31: 2.6 | O31: 3.5 | P31: 7.1
B32: 2023 | C32: Rural | D32: 24.6 | E32: 1.1 | F32: 22.5 | G32: 26.8 | H32: 4.4 | J32: 2023 | K32: Rural | L32: 4.1 | M32: 0.4 | N32: 3.3 | O32: 5.0 | P32: 10.2
B33: 2024* | C33: Nacional | D33: 19.0 | E33: 0.55 | F33: 17.90 | G33: 20.06 | H33: 2.90 | J33: 2024* | K33: Nacional | L33: 2.4 | M33: 0.2 | N33: 2.1 | O33: 2.8 | P33: 6.7
B34: 2024* | C34: Urbana | D34: 18.3 | E34: 0.6 | F34: 17.1 | G34: 19.5 | H34: 3.4 | J34: 2024* | K34: Urbana | L34: 2.2 | M34: 0.2 | N34: 1.8 | O34: 2.6 | P34: 8.3
B35: 2024* | C35: Rural | D35: 22.8 | E35: 1.1 | F35: 20.7 | G35: 24.9 | H35: 4.7 | J35: 2024* | K35: Rural | L35: 3.7 | M35: 0.4 | N35: 3.0 | O35: 4.4 | P35: 9.6
B36: Fuente: Elaborado por el Comité Técnico de Pobreza (CTP) a partir de la Encuesta Nacional Continua de Fuerza de Trabajo (ENCFT) del Banco Central de la República Dominicana (BCRD). | J36: Fuente: Elaborado por el Comité Técnico de Pobreza (CTP) a partir de la Encuesta Nacional Continua de Fuerza de Trabajo (ENCFT) del Banco Central de la República Dominicana (BCRD).

Sheet Anexo 10 y 11
A3: Índice
B5: Anexo 10. Coeficientes de variación e intervalos de confianzas de las tasas de pobreza monetaria general, según sexo 2016-2024* | J5: Anexo 11. Coeficientes de variación e intervalos de confianzas de las tasas de pobreza monetaria general, según sexo 2016-2024*
B7: Pobreza General | J7: Pobreza extrema
B8: Año | C8: Sexo | D8: Porcentaje | E8: Error estandar | F8: Min | G8: Max | H8: Coeficiente de variación (%) | J8: Año | K8: Sexo | L8: Porcentaje | M8: Error estandar | N8: Min | O8: Max | P8: Coeficiente de variación (%)
B9: 2016 | C9: Nacional | D9: 34.8 | E9: 0.7 | F9: 33.5 | G9: 36.2 | H9: 2.0 | J9: 2016 | K9: Nacional | L9: 5.9 | M9: 0.3 | N9: 5.3 | O9: 6.4 | P9: 4.6
B10: 2016 | C10: Masculino | D10: 33.7 | E10: 0.7 | F10: 32.3 | G10: 35.0 | H10: 2.1 | J10: 2016 | K10: Masculino | L10: 5.7 | M10: 0.3 | N10: 5.1 | O10: 6.2 | P10: 5.0
B11: 2016 | C11: Femenino | D11: 35.9 | E11: 0.7 | F11: 34.5 | G11: 37.4 | H11: 2.1 | J11: 2016 | K11: Femenino | L11: 6.1 | M11: 0.3 | N11: 5.5 | O11: 6.6 | P11: 4.6
B12: 2017 | C12: Nacional | D12: 31.2 | E12: 0.6 | F12: 30.0 | G12: 32.5 | H12: 2.0 | J12: 2017 | K12: Nacional | L12: 4.7 | M12: 0.3 | N12: 4.2 | O12: 5.2 | P12: 5.4
B13: 2017 | C13: Masculino | D13: 30.1 | E13: 0.6 | F13: 28.8 | G13: 31.4 | H13: 2.1 | J13: 2017 | K13: Masculino | L13: 4.6 | M13: 0.3 | N13: 4.1 | O13: 5.1 | P13: 5.9
B14: 2017 | C14: Femenino | D14: 32.3 | E14: 0.7 | F14: 30.9 | G14: 33.7 | H14: 2.2 | J14: 2017 | K14: Femenino | L14: 4.9 | M14: 0.3 | N14: 4.3 | O14: 5.4 | P14: 5.6
B15: 2018 | C15: Nacional | D15: 28.3 | E15: 0.6 | F15: 27.0 | G15: 29.5 | H15: 2.2 | J15: 2018 | K15: Nacional | L15: 3.4 | M15: 0.2 | N15: 3.1 | O15: 3.8 | P15: 5.8
B16: 2018 | C16: Masculino | D16: 26.6 | E16: 0.6 | F16: 25.4 | G16: 27.9 | H16: 2.4 | J16: 2018 | K16: Masculino | L16: 3.3 | M16: 0.2 | N16: 2.9 | O16: 3.7 | P16: 6.3
B17: 2018 | C17: Femenino | D17: 29.9 | E17: 0.7 | F17: 28.5 | G17: 31.3 | H17: 2.3 | J17: 2018 | K17: Femenino | L17: 3.6 | M17: 0.2 | N17: 3.2 | O17: 4.0 | P17: 6.1
B18: 2019 | C18: Nacional | D18: 25.8 | E18: 0.6 | F18: 24.6 | G18: 27.0 | H18: 2.4 | J18: 2019 | K18: Nacional | L18: 2.9 | M18: 0.2 | N18: 2.5 | O18: 3.2 | P18: 6.4
B19: 2019 | C19: Masculino | D19: 24.2 | E19: 0.6 | F19: 23.0 | G19: 25.5 | H19: 2.6 | J19: 2019 | K19: Masculino | L19: 2.7 | M19: 0.2 | N19: 2.3 | O19: 3.1 | P19: 6.8
B20: 2019 | C20: Femenino | D20: 27.3 | E20: 0.7 | F20: 26.0 | G20: 28.7 | H20: 2.5 | J20: 2019 | K20: Femenino | L20: 3.0 | M20: 0.2 | N20: 2.6 | O20: 3.4 | P20: 6.8
B21: 2020 | C21: Nacional | D21: 30.4 | E21: 0.7 | F21: 29.1 | G21: 31.8 | H21: 2.3 | J21: 2020 | K21: Nacional | L21: 4.9 | M21: 0.3 | N21: 4.4 | O21: 5.5 | P21: 5.4
B22: 2020 | C22: Masculino | D22: 28.7 | E22: 0.7 | F22: 27.3 | G22: 30.1 | H22: 2.4 | J22: 2020 | K22: Masculino | L22: 4.7 | M22: 0.3 | N22: 4.2 | O22: 5.2 | P22: 5.7
B23: 2020 | C23: Femenino | D23: 32.1 | E23: 0.8 | F23: 30.6 | G23: 33.6 | H23: 2.4 | J23: 2020 | K23: Femenino | L23: 5.2 | M23: 0.3 | N23: 4.6 | O23: 5.7 | P23: 5.7
B24: 2021 | C24: Nacional | D24: 30.7 | E24: 0.6 | F24: 29.5 | G24: 31.9 | H24: 2.0 | J24: 2021 | K24: Nacional | L24: 4.1 | M24: 0.2 | N24: 3.7 | O24: 4.6 | P24: 5.4
B25: 2021 | C25: Masculino | D25: 28.3 | E25: 0.6 | F25: 27.1 | G25: 29.5 | H25: 2.2 | J25: 2021 | K25: Masculino | L25: 3.7 | M25: 0.2 | N25: 3.3 | O25: 4.1 | P25: 5.8
B26: 2021 | C26: Femenino | D26: 32.9 | E26: 0.7 | F26: 31.6 | G26: 34.3 | H26: 2.1 | J26: 2021 | K26: Femenino | L26: 4.6 | M26: 0.3 | N26: 4.0 | O26: 5.1 | P26: 5.7
B27: 2022 | C27: Nacional | D27: 27.7 | E27: 0.6 | F27: 26.4 | G27: 28.9 | H27: 2.3 | J27: 2022 | K27: Nacional | L27: 3.8 | M27: 0.2 | N27: 3.3 | O27: 4.2 | P27: 5.8
B28: 2022 | C28: Masculino | D28: 25.8 | E28: 0.6 | F28: 24.6 | G28: 27.1 | H28: 2.5 | J28: 2022 | K28: Masculino | L28: 3.7 | M28: 0.2 | N28: 3.3 | O28: 4.2 | P28: 6.4
B29: 2022 | C29: Femenino | D29: 29.4 | E29: 0.7 | F29: 28.0 | G29: 30.7 | H29: 2.4 | J29: 2022 | K29: Femenino | L29: 3.8 | M29: 0.2 | N29: 3.4 | O29: 4.3 | P29: 6.0
B30: 2023 | C30: Nacional | D30: 23.0 | E30: 0.6 | F30: 21.9 | G30: 24.1 | H30: 2.5 | J30: 2023 | K30: Nacional | L30: 3.2 | M30: 0.2 | N30: 2.9 | O30: 3.6 | P30: 6.0
B31: 2023 | C31: Masculino | D31: 21.8 | E31: 0.6 | F31: 20.6 | G31: 23.0 | H31: 2.7 | J31: 2023 | K31: Masculino | L31: 3.1 | M31: 0.2 | N31: 2.7 | O31: 3.5 | P31: 6.4
B32: 2023 | C32: Femenino | D32: 24.1 | E32: 0.6 | F32: 22.9 | G32: 25.4 | H32: 2.6 | J32: 2023 | K32: Femenino | L32: 3.4 | M32: 0.2 | N32: 2.9 | O32: 3.8 | P32: 6.5
B33: 2024* | C33: Nacional | D33: 19.0 | E33: 0.6 | F33: 17.9 | G33: 20.1 | H33: 2.9 | J33: 2024* | K33: Nacional | L33: 2.44 | M33: 0.16 | N33: 2.12 | O33: 2.76 | P33: 6.74
B34: 2024* | C34: Masculino | D34: 17.8 | E34: 0.6 | F34: 16.7 | G34: 18.9 | H34: 3.1 | J34: 2024* | K34: Masculino | L34: 2.2 | M34: 0.2 | N34: 1.9 | O34: 2.5 | P34: 6.9
B35: 2024* | C35: Femenino | D35: 20.1 | E35: 0.6 | F35: 18.9 | G35: 21.3 | H35: 3.1 | J35: 2024* | K35: Femenino | L35: 2.7 | M35: 0.2 | N35: 2.3 | O35: 3.0 | P35: 7.4
B36: Fuente: Elaborado por el Comité Técnico de Pobreza (CTP) a partir de la Encuesta Nacional Continua de Fuerza de Trabajo (ENCFT) del Banco Central de la República Dominicana (BCRD). | J36: Fuente: Elaborado por el Comité Técnico de Pobreza (CTP) a partir de la Encuesta Nacional Continua de Fuerza de Trabajo (ENCFT) del Banco Central de la República Dominicana (BCRD).

Sheet Anexo 12
A3: Índice
B5: Anexo 12. Deflactor del índice de precios del consumidor, según macrorregión 2016-2024*
B7: Trimestre | C7: IPC Junio 2018
C8: Ozama | D8: Norte o Cibao | E8: Sureste | F8: Suroeste
B9: 2016-T1 | C9: 0.93 | D9: 0.92 | E9: 0.92 | F9: 0.92
B10: 2016-T2 | C10: 0.93 | D10: 0.92 | E10: 0.92 | F10: 0.92
B11: 2016-T3 | C11: 0.94 | D11: 0.93 | E11: 0.93 | F11: 0.93
B12: 2016-T4 | C12: 0.94 | D12: 0.93 | E12: 0.93 | F12: 0.93
B13: 2017-T1 | C13: 0.96 | D13: 0.95 | E13: 0.95 | F13: 0.95
B14: 2017-T2 | C14: 0.96 | D14: 0.95 | E14: 0.95 | F14: 0.95
B15: 2017-T3 | C15: 0.97 | D15: 0.96 | E15: 0.96 | F15: 0.96
B16: 2017-T4 | C16: 0.98 | D16: 0.98 | E16: 0.97 | F16: 0.97
B17: 2018-T1 | C17: 0.99 | D17: 0.99 | E17: 0.99 | F17: 0.99
B18: 2018-T2 | C18: 1.00 | D18: 1.00 | E18: 1.00 | F18: 1.00
B19: 2018-T3 | C19: 1.00 | D19: 1.00 | E19: 1.00 | F19: 1.00
B20: 2018-T4 | C20: 1.00 | D20: 1.00 | E20: 1.00 | F20: 1.00
B21: 2019-T1 | C21: 1.00 | D21: 1.00 | E21: 1.00 | F21: 1.00
B22: 2019-T2 | C22: 1.01 | D22: 1.01 | E22: 1.01 | F22: 1.01
B23: 2019-T3 | C23: 1.01 | D23: 1.02 | E23: 1.02 | F23: 1.02
B24: 2019-T4 | C24: 1.03 | D24: 1.03 | E24: 1.03 | F24: 1.04
B25: 2020-T1 | C25: 1.03 | D25: 1.04 | E25: 1.04 | F25: 1.05
B26: 2020-T2 | C26: 1.02 | D26: 1.02 | E26: 1.02 | F26: 1.03
B27: 2020-T3 | C27: 1.06 | D27: 1.07 | E27: 1.07 | F27: 1.08
B28: 2020-T4 | C28: 1.08 | D28: 1.09 | E28: 1.09 | F28: 1.11
B29: 2021-T1 | C29: 1.10 | D29: 1.11 | E29: 1.11 | F29: 1.14
B30: 2021-T2 | C30: 1.11 | D30: 1.13 | E30: 1.13 | F30: 1.16
B31: 2021-T3 | C31: 1.13 | D31: 1.16 | E31: 1.16 | F31: 1.19
B32: 2021-T4 | C32: 1.16 | D32: 1.18 | E32: 1.18 | F32: 1.22
B33: 2022-T1 | C33: 1.19 | D33: 1.22 | E33: 1.21 | F33: 1.25
B34: 2022-T2 | C34: 1.21 | D34: 1.25 | E34: 1.24 | F34: 1.28
B35: 2022-T3 | C35: 1.22 | D35: 1.27 | E35: 1.26 | F35: 1.30
B36: 2022-T4 | C36: 1.23 | D36: 1.29 | E36: 1.27 | F36: 1.31
B37: 2023-T1 | C37: 1.25 | D37: 1.30 | E37: 1.30 | F37: 1.34
B38: 2023-T2 | C38: 1.26 | D38: 1.31 | E38: 1.31 | F38: 1.34
B39: 2023-T3 | C39: 1.27 | D39: 1.33 | E39: 1.32 | F39: 1.36
B40: 2023-T4 | C40: 1.28 | D40: 1.34 | E40: 1.33 | F40: 1.37
B41: 2024-T1 | C41: 1.30 | D41: 1.35 | E41: 1.34 | F41: 1.39
B42: 2024-T2 | C42: 1.30 | D42: 1.35 | E42: 1.35 | F42: 1.39
B43: 2024-T3 | C43: 1.31 | D43: 1.37 | E43: 1.36 | F43: 1.41
B44: 2024-T4 | C44: 1.32 | D44: 1.38 | E44: 1.37 | F44: 1.42
B45: Fuente: Elaborado por el Comité Técnico de Pobreza (CTP) a partir de índice de precios del consumidor (IPC) del Banco Central de la República Dominicana (BCRD).

Sheet Anexo 13
A3: Índice
B5: Anexo 13. Descomposición del cambio de la pobreza general en los efectos de crecimiento, distribución e inflación 2023-2024* (puntos porcentuales)
B6: Efectos | C6: Ozama | D6: Norte | E6: Este | F6: Sur
B8: Efecto Crecimiento | C8: -7.56 | D8: -5.1 | E8: -4.73 | F8: -6.97
B9: Efecto Distribución | C9: -0.01 | D9: 2.08 | E9: -1.83 | F9: 1.86
B10: Efecto inflación | C10: 1.65 | D10: 1.29 | E10: 1.78 | F10: 1.55
B11: Cambio total | C11: -5.91 | D11: -1.73 | E11: -4.79 | F11: -3.56
B12: Fuente: Comité Técnico Interinstitucional de Pobreza, a partir del procesamiento de microdatos de la ENCFT del Banco Central de la República Dominicana. *Cifras preliminares

Sheet Anexo 14
A2: Índice
B5: Anexo 14. Coeficiente de variación, error estandar e intervalo de confianza de la tasa de pobreza monetaria general, según grupo de edad, 2016-2024*
B7: Pobreza General
B8: Año | C8: Grupo de edad | D8: Porcentaje | E8: Error estandar | F8: Min | G8: Max | H8: Coeficiente de variación (%)
B9: 2016 | C9: Menores de 15 años | D9: 49.9 | E9: 0.9 | F9: 48.0 | G9: 51.7 | H9: 1.9
B10: 2016 | C10: de 15 a 35 años | D10: 34.0 | E10: 0.7 | F10: 32.6 | G10: 35.5 | H10: 2.2
B11: 2016 | C11: de 36 a 55 años | D11: 26.9 | E11: 0.7 | F11: 25.5 | G11: 28.2 | H11: 2.6
B12: 2016 | C12: de 56 a 65 años | D12: 21.4 | E12: 1.0 | F12: 19.5 | G12: 23.3 | H12: 4.5
B13: 2016 | C13: Mayores de 65 años | D13: 22.7 | E13: 1.0 | F13: 20.8 | G13: 24.6 | H13: 4.3
B14: 2017 | C14: Menores de 15 años | D14: 44.8 | E14: 0.9 | F14: 43.0 | G14: 46.6 | H14: 2.0
B15: 2017 | C15: de 15 a 35 años | D15: 31.1 | E15: 0.7 | F15: 29.8 | G15: 32.5 | H15: 2.2
B16: 2017 | C16: de 36 a 55 años | D16: 23.8 | E16: 0.6 | F16: 22.5 | G16: 25.0 | H16: 2.7
B17: 2017 | C17: de 56 a 65 años | D17: 19.8 | E17: 0.9 | F17: 17.9 | G17: 21.6 | H17: 4.7
B18: 2017 | C18: Mayores de 65 años | D18: 19.0 | E18: 0.9 | F18: 17.1 | G18: 20.8 | H18: 4.9
B19: 2018 | C19: Menores de 15 años | D19: 42.5 | E19: 0.9 | F19: 40.6 | G19: 44.4 | H19: 2.2
B20: 2018 | C20: de 15 a 35 años | D20: 27.9 | E20: 0.7 | F20: 26.5 | G20: 29.2 | H20: 2.4
B21: 2018 | C21: de 36 a 55 años | D21: 20.4 | E21: 0.6 | F21: 19.3 | G21: 21.6 | H21: 2.8
B22: 2018 | C22: de 56 a 65 años | D22: 16.9 | E22: 0.8 | F22: 15.3 | G22: 18.6 | H22: 5.0
B23: 2018 | C23: Mayores de 65 años | D23: 17.8 | E23: 0.9 | F23: 16.1 | G23: 19.5 | H23: 4.9
B24: 2019 | C24: Menores de 15 años | D24: 40.3 | E24: 1.0 | F24: 38.4 | G24: 42.2 | H24: 2.4
B25: 2019 | C25: de 15 a 35 años | D25: 25.3 | E25: 0.7 | F25: 24.0 | G25: 26.7 | H25: 2.7
B26: 2019 | C26: de 36 a 55 años | D26: 18.3 | E26: 0.6 | F26: 17.1 | G26: 19.5 | H26: 3.3
B27: 2019 | C27: de 56 a 65 años | D27: 13.4 | E27: 0.8 | F27: 11.9 | G27: 14.9 | H27: 5.6
B28: 2019 | C28: Mayores de 65 años | D28: 14.9 | E28: 0.9 | F28: 13.1 | G28: 16.7 | H28: 6.2
B29: 2020 | C29: Menores de 15 años | D29: 47.0 | E29: 1.0 | F29: 45.0 | G29: 49.1 | H29: 2.2
B30: 2020 | C30: de 15 a 35 años | D30: 31.8 | E30: 0.8 | F30: 30.3 | G30: 33.4 | H30: 2.4
B31: 2020 | C31: de 36 a 55 años | D31: 22.2 | E31: 0.7 | F31: 20.8 | G31: 23.6 | H31: 3.2
B32: 2020 | C32: de 56 a 65 años | D32: 14.2 | E32: 0.9 | F32: 12.5 | G32: 15.8 | H32: 6.0
B33: 2020 | C33: Mayores de 65 años | D33: 13.3 | E33: 0.9 | F33: 11.5 | G33: 15.1 | H33: 6.8
B34: 2021 | C34: Menores de 15 años | D34: 47.2 | E34: 0.9 | F34: 45.5 | G34: 49.0 | H34: 1.9
B35: 2021 | C35: de 15 a 35 años | D35: 31.6 | E35: 0.7 | F35: 30.2 | G35: 32.9 | H35: 2.2
B36: 2021 | C36: de 36 a 55 años | D36: 22.3 | E36: 0.6 | F36: 21.0 | G36: 23.5 | H36: 2.9
B37: 2021 | C37: de 56 a 65 años | D37: 16.3 | E37: 0.9 | F37: 14.6 | G37: 18.0 | H37: 5.3
B38: 2021 | C38: Mayores de 65 años | D38: 15.1 | E38: 0.8 | F38: 13.6 | G38: 16.7 | H38: 5.2
B39: 2022 | C39: Menores de 15 años | D39: 43.3 | E39: 0.9 | F39: 41.5 | G39: 45.2 | H39: 2.2
B40: 2022 | C40: de 15 a 35 años | D40: 28.0 | E40: 0.7 | F40: 26.6 | G40: 29.3 | H40: 2.4
B41: 2022 | C41: de 36 a 55 años | D41: 20.5 | E41: 0.6 | F41: 19.3 | G41: 21.7 | H41: 3.0
B42: 2022 | C42: de 56 a 65 años | D42: 13.0 | E42: 0.7 | F42: 11.6 | G42: 14.4 | H42: 5.5
B43: 2022 | C43: Mayores de 65 años | D43: 14.0 | E43: 0.8 | F43: 12.4 | G43: 15.6 | H43: 5.9
B44: 2023 | C44: Menores de 15 años | D44: 37.2 | E44: 0.9 | F44: 35.4 | G44: 39.1 | H44: 2.5
B45: 2023 | C45: de 15 a 35 años | D45: 22.9 | E45: 0.6 | F45: 21.7 | G45: 24.2 | H45: 2.7
B46: 2023 | C46: de 36 a 55 años | D46: 16.4 | E46: 0.6 | F46: 15.3 | G46: 17.5 | H46: 3.4
B47: 2023 | C47: de 56 a 65 años | D47: 11.5 | E47: 0.6 | F47: 10.2 | G47: 12.7 | H47: 5.5
B48: 2023 | C48: Mayores de 65 años | D48: 12.3 | E48: 0.7 | F48: 10.8 | G48: 13.7 | H48: 6.0
B49: 2024* | C49: Menores de 15 años | D49: 31.9 | E49: 0.9 | F49: 30.1 | G49: 33.7 | H49: 2.9
B50: 2024* | C50: de 15 a 35 años | D50: 18.6 | E50: 0.6 | F50: 17.4 | G50: 19.8 | H50: 3.2
B51: 2024* | C51: de 36 a 55 años | D51: 14.0 | E51: 0.5 | F51: 13.0 | G51: 15.1 | H51: 3.9
B52: 2024* | C52: de 56 a 65 años | D52: 9.5 | E52: 0.7 | F52: 8.2 | G52: 10.8 | H52: 6.9
B53: 2024* | C53: Mayores de 65 años | D53: 8.7 | E53: 0.6 | F53: 7.5 | G53: 9.9 | H53: 7.0
B54: Fuente: Elaborado por el Comité Técnico de Pobreza (CTP) a partir de la Encuesta Nacional Continua de Fuerza de Trabajo (ENCFT) del Banco Central de la República Dominicana (BCRD).
B55: *Cifras preliminares
